EXTRACTDATE,PUBLISHERURI,ORGANISATIONLABEL,EXPENSE DATE,VENDOR NAME ,COST CENTRE NAME,SUBJECTIVE DESCRIPTION,REQUESTED EXPENSE AMOUNT
08/12/2023,,LB of Brent,01/09/2023,Amznmktplace,Communication and Support Services,Stationery,14.98
08/12/2023,,LB of Brent,01/09/2023,Brent Parking,Estate Cleaning Team,Supplies and Services Expenditure,5
08/12/2023,,LB of Brent,01/09/2023,Shell Kilburn,Estate Cleaning Team,Supplies and Services Expenditure,19.99
08/12/2023,,LB of Brent,01/09/2023,Shell Kilburn,Estate Cleaning Team,Supplies and Services Expenditure,26.72
08/12/2023,,LB of Brent,01/09/2023,Food Express,Smart Team,Supplies and Services Expenditure,10
08/12/2023,,LB of Brent,01/09/2023,Tesco Stores 2122,Smart Team,Supplies and Services Expenditure,18.69
08/12/2023,,LB of Brent,01/09/2023,Travelodge Gb0000,Housing Needs Accommodation Team,Supplies and Services Expenditure,458.41
08/12/2023,,LB of Brent,01/09/2023,Intellisoftware Ltd,IT Operations,Information Communication Technology,10
08/12/2023,,LB of Brent,01/09/2023,Amazon.Co.Uk,IT Operations,Information Communication Technology,124.92
08/12/2023,,LB of Brent,01/09/2023,Flickr Pro Monthly,Digital Comms,Supplies and Services Expenditure,6.99
08/12/2023,,LB of Brent,01/09/2023,The Law Society,Legal Support,Supplies and Services Expenditure,1648
08/12/2023,,LB of Brent,01/09/2023,Amazon.Co.Uk,Brent Family Solutions,Supplies and Services Expenditure,14.98
08/12/2023,,LB of Brent,01/09/2023,Asda Superstore 04881,Brent Family Solutions,Supplies and Services Expenditure,20
08/12/2023,,LB of Brent,01/09/2023,Asda Superstore 04881,Brent Family Solutions,Supplies and Services Expenditure,20
08/12/2023,,LB of Brent,01/09/2023,Prezzee/Gb9caba45b,Brent Family Solutions,Supplies and Services Expenditure,20
08/12/2023,,LB of Brent,01/09/2023,Prezzee/Gb1d0fee61,Brent Family Solutions,Supplies and Services Expenditure,60
08/12/2023,,LB of Brent,01/09/2023,Tesco Stores 2122,Brent Family Solutions,Supplies and Services Expenditure,70
08/12/2023,,LB of Brent,01/09/2023,One4all,Brent Family Solutions,Supplies and Services Expenditure,70
08/12/2023,,LB of Brent,01/09/2023,Prezzee/Gb5303f782,Brent Family Solutions,Supplies and Services Expenditure,75
08/12/2023,,LB of Brent,01/09/2023,Sainsburys Wembley,Brent Family Solutions,Supplies and Services Expenditure,135
08/12/2023,,LB of Brent,02/09/2023,Tesco Stores 2122,Short Break Centre,Supplies and Services Expenditure,131.74
08/12/2023,,LB of Brent,02/09/2023,Amazon Prime,Willows Nursery,Supplies and Services Expenditure,7.49
08/12/2023,,LB of Brent,02/09/2023,Msft * E0600osfw6,IT Operations,Supplies and Services Expenditure,5.4
08/12/2023,,LB of Brent,03/09/2023,British Gas Online,NAIL Property Management,Supplies and Services Expenditure,82.5
08/12/2023,,LB of Brent,03/09/2023,British Gas Online,NAIL Property Management,Supplies and Services Expenditure,82.5
08/12/2023,,LB of Brent,03/09/2023,British Gas Online,NAIL Property Management,Supplies and Services Expenditure,82.5
08/12/2023,,LB of Brent,03/09/2023,British Gas Online,NAIL Property Management,Supplies and Services Expenditure,82.5
08/12/2023,,LB of Brent,03/09/2023,British Gas Online,NAIL Property Management,Supplies and Services Expenditure,82.5
08/12/2023,,LB of Brent,04/09/2023,Jj Food Service - Basi,Gordon Brown Outdoor Education Centre,Supplies and Services Expenditure,109.32
08/12/2023,,LB of Brent,04/09/2023,Sainsburys S/Mkts,Head of Property Services,Supplies and Services Expenditure,2.85
08/12/2023,,LB of Brent,04/09/2023,Amznmktplace,Childrens Social Care Business Support,Supplies and Services Expenditure,107.41
08/12/2023,,LB of Brent,04/09/2023,Amznmktplace,Wembley Learning Zone,Supplies and Services Expenditure,178.08
08/12/2023,,LB of Brent,04/09/2023,Ace Clothing Company,Homes for Ukraine Scheme,Clothing,130.84
08/12/2023,,LB of Brent,04/09/2023,Sainsburys S/Mkts,Brent Family Solutions,Supplies and Services Expenditure,3
08/12/2023,,LB of Brent,04/09/2023,Sainsburys Wembley,Brent Family Solutions,Supplies and Services Expenditure,7
08/12/2023,,LB of Brent,04/09/2023,Capt Charity,Brent Family Solutions,Supplies and Services Expenditure,21.36
08/12/2023,,LB of Brent,04/09/2023,Sainsburys Wembley,Brent Family Solutions,Supplies and Services Expenditure,30
08/12/2023,,LB of Brent,04/09/2023,Lidl Gb London,Brent Family Solutions,Supplies and Services Expenditure,50.12
08/12/2023,,LB of Brent,04/09/2023,Travelodge Gb0000,Housing Needs Housing Options Team,Supplies and Services Expenditure,83.37
08/12/2023,,LB of Brent,05/09/2023,Debit Adjustment - Dispute Refund Reversal,Customer Access Improvement and Performance,Supplies and Services Expenditure,161.33
08/12/2023,,LB of Brent,05/09/2023,Debit Adjustment - Dispute Refund Reversal,Customer Access Improvement and Performance,Supplies and Services Expenditure,170.8
08/12/2023,,LB of Brent,05/09/2023,1password,IT Operations,Information Communication Technology,0.7
08/12/2023,,LB of Brent,05/09/2023,Brent Parking,Estate Cleaning Team,Supplies and Services Expenditure,2
08/12/2023,,LB of Brent,05/09/2023,Wickes Cricklewood,Estate Cleaning Team,Supplies and Services Expenditure,40.5
08/12/2023,,LB of Brent,05/09/2023,Wickes Cricklewood,Estate Cleaning Team,Supplies and Services Expenditure,99
08/12/2023,,LB of Brent,05/09/2023,Travelodge Gb0000,Housing Needs Accommodation Team,Supplies and Services Expenditure,464.03
08/12/2023,,LB of Brent,05/09/2023,Amznmktplace,Audit and Investigations,Supplies and Services Expenditure,49.95
08/12/2023,,LB of Brent,05/09/2023,Marks&spencer Plc,Afghan Resettlement Scheme,Supplies and Services Expenditure,31.67
08/12/2023,,LB of Brent,05/09/2023,Amznmktplace,Legal Support,Stationery,12.49
08/12/2023,,LB of Brent,05/09/2023,Quick Picks UK Limited,Wembley Learning Zone,Supplies and Services Expenditure,25.98
08/12/2023,,LB of Brent,05/09/2023,Lidl Gb London,Wembley Learning Zone,Supplies and Services Expenditure,34.47
08/12/2023,,LB of Brent,05/09/2023,Issuu,Campaigns and Media,Supplies and Services Expenditure,187.39
08/12/2023,,LB of Brent,05/09/2023,Argos Wembley West Olympi,Housing Partnerships Service,Supplies and Services Expenditure,100
08/12/2023,,LB of Brent,06/09/2023,Amznmktplace,Short Break Centre,Supplies and Services Expenditure,6.99
08/12/2023,,LB of Brent,06/09/2023,Amznmktplace,Short Break Centre,Supplies and Services Expenditure,16.14
08/12/2023,,LB of Brent,06/09/2023,Amz*boulevard Online,Brent Family Solutions,Supplies and Services Expenditure,-13.16
08/12/2023,,LB of Brent,06/09/2023,Amznmktplace,Short Break Centre,Supplies and Services Expenditure,5.97
08/12/2023,,LB of Brent,06/09/2023,Amznmktplace,Short Break Centre,Supplies and Services Expenditure,13.5
08/12/2023,,LB of Brent,06/09/2023,Tesco Stores 2122,Short Break Centre,Supplies and Services Expenditure,141.83
08/12/2023,,LB of Brent,06/09/2023,Booker Ltd - 38576504,Civic Centre Conference and Events,Supplies and Services Expenditure,103.08
08/12/2023,,LB of Brent,06/09/2023,Poundland Ltd - 1584,Gordon Brown Outdoor Education Centre,Supplies and Services Expenditure,15
08/12/2023,,LB of Brent,06/09/2023,Posturite Ltd,Assessment,Stationery,70.58
08/12/2023,,LB of Brent,06/09/2023,Travelodge Gb0000,Housing Needs Accommodation Team,Supplies and Services Expenditure,98.67
08/12/2023,,LB of Brent,06/09/2023,Travelodge Gb0000,Housing Needs Accommodation Team,Supplies and Services Expenditure,551.04
08/12/2023,,LB of Brent,06/09/2023,Asda Groceries Online,Willows Nursery,Supplies and Services Expenditure,-6.1
08/12/2023,,LB of Brent,06/09/2023,Asda Groceries Online,Willows Nursery,Supplies and Services Expenditure,58.92
08/12/2023,,LB of Brent,06/09/2023,Paypal,Afghan Resettlement Scheme,Supplies and Services Expenditure,445.37
08/12/2023,,LB of Brent,06/09/2023,The Law Society,Legal Support,Supplies and Services Expenditure,1648
08/12/2023,,LB of Brent,06/09/2023,Amazon.Co.Uk,Building Consultancy,Stationery,16.65
08/12/2023,,LB of Brent,06/09/2023,Amazon.Co.Uk,Building Consultancy,Stationery,129.16
08/12/2023,,LB of Brent,06/09/2023,Uk Power Networks,V5 Repairs - Structural,Environmental Services,3148.2
08/12/2023,,LB of Brent,06/09/2023,Uk Power Networks,V5 Repairs - Structural,Environmental Services,3148.2
08/12/2023,,LB of Brent,06/09/2023,Sainsburys Wembley,Brent Family Solutions,Supplies and Services Expenditure,30
08/12/2023,,LB of Brent,06/09/2023,Gentworks Limited,Gordon Brown Outdoor Education Centre,Supplies and Services Expenditure,177.6
08/12/2023,,LB of Brent,06/09/2023,Tesco Stores 2080,Gordon Brown Outdoor Education Centre,Supplies and Services Expenditure,184.76
08/12/2023,,LB of Brent,06/09/2023,Paypal,Afghan Resettlement Scheme,Supplies and Services Expenditure,-21.65
08/12/2023,,LB of Brent,06/09/2023,Lenovo,Building Consultancy,Stationery,216.66
08/12/2023,,LB of Brent,07/09/2023,Shell Kilburn,Estate Cleaning Team,Supplies and Services Expenditure,62.04
08/12/2023,,LB of Brent,07/09/2023,Bolt,Smart Team,Supplies and Services Expenditure,6
08/12/2023,,LB of Brent,07/09/2023,Bolt,Smart Team,Supplies and Services Expenditure,9.8
08/12/2023,,LB of Brent,07/09/2023,Bes Ltd,Gordon Brown Outdoor Education Centre,Supplies and Services Expenditure,65.2
08/12/2023,,LB of Brent,07/09/2023,Amazon Prime,Brent Sicts,Information Communication Technology,7.49
08/12/2023,,LB of Brent,07/09/2023,Amazon* 202-6392923-23,Family Hubs and Start for Life,Stationery,14.6
08/12/2023,,LB of Brent,07/09/2023,Calendly,Member Development,Financial Services,49.49
08/12/2023,,LB of Brent,07/09/2023,High Street Vouchers,Transformation Team,Financial Services,204
08/12/2023,,LB of Brent,07/09/2023,C2e865101346z Ukvi,Hr Services,Financial Services,2199
08/12/2023,,LB of Brent,07/09/2023,Workspace Group Plc,Strategy and Partnerships,Supplies and Services Expenditure,60
08/12/2023,,LB of Brent,07/09/2023,Brent Parking,Parish Liaison,Supplies and Services Expenditure,1.67
08/12/2023,,LB of Brent,07/09/2023,Amznmktplace,IT Operations,Information Communication Technology,24.16
08/12/2023,,LB of Brent,07/09/2023,Amazon.Co.Uk,IT Operations,Information Communication Technology,124.32
08/12/2023,,LB of Brent,07/09/2023,Gb Total Equestrian,Gordon Brown Outdoor Education Centre,Supplies and Services Expenditure,89.25
08/12/2023,,LB of Brent,07/09/2023,Rumbles,Afghan Resettlement Scheme,Supplies and Services Expenditure,68.69
08/12/2023,,LB of Brent,08/09/2023,Amznmktplace,Revenues,Stationery,6.49
08/12/2023,,LB of Brent,08/09/2023,Amznmktplace,Customer Access Improvement and Performance,Stationery,109.98
08/12/2023,,LB of Brent,08/09/2023,1password,IT Operations,Information Communication Technology,0.37
08/12/2023,,LB of Brent,08/09/2023,Brent Parking,Estate Cleaning Team,Supplies and Services Expenditure,20
08/12/2023,,LB of Brent,08/09/2023,Amznmktplace,Legal Support,Stationery,31.65
08/12/2023,,LB of Brent,08/09/2023,Amz*parrs,Civic Centre Conference and Events,Stationery,218
08/12/2023,,LB of Brent,08/09/2023,Travelodge Gb0000,Housing Needs Accommodation Team,Supplies and Services Expenditure,92.8
08/12/2023,,LB of Brent,08/09/2023,Travelodge Gb0000,Housing Needs Accommodation Team,Supplies and Services Expenditure,283.01
08/12/2023,,LB of Brent,08/09/2023,Travelodge Gb0000,Housing Needs Accommodation Team,Supplies and Services Expenditure,441.61
08/12/2023,,LB of Brent,08/09/2023,Travelodge Gb0000,Housing Needs Accommodation Team,Supplies and Services Expenditure,488.53
08/12/2023,,LB of Brent,08/09/2023,Travelodge Gb0000,Housing Needs Accommodation Team,Supplies and Services Expenditure,554.29
08/12/2023,,LB of Brent,08/09/2023,Hmctslondoncse077,Debt and Income,Supplies and Services Expenditure,893.5
08/12/2023,,LB of Brent,08/09/2023,Amazon Prime,Childrens Social Care Business Support,Supplies and Services Expenditure,7.49
08/12/2023,,LB of Brent,08/09/2023,Paypal,Afghan Resettlement Scheme,Supplies and Services Expenditure,162.84
08/12/2023,,LB of Brent,08/09/2023,Clarks.Co.Uk,Afghan Resettlement Scheme,Supplies and Services Expenditure,382.5
08/12/2023,,LB of Brent,08/09/2023,Bristow And Sutor,I4B Property Management,Financial Services,961.24
08/12/2023,,LB of Brent,09/09/2023,Tesco Stores 2122,Short Break Centre,Supplies and Services Expenditure,95.09
08/12/2023,,LB of Brent,09/09/2023,Amznmktplace,Legal Support,Stationery,26.35
08/12/2023,,LB of Brent,09/09/2023,Amznmktplace,Legal Support,Stationery,33.25
08/12/2023,,LB of Brent,09/09/2023,Post Office Counter,Parish Liaison,Financial Services,3.91
08/12/2023,,LB of Brent,09/09/2023,Post Office Counter,Parish Liaison,Financial Services,10.62
08/12/2023,,LB of Brent,10/09/2023,Uber *trip,Fostering Support Team B,Supplies and Services Expenditure,9.9
08/12/2023,,LB of Brent,10/09/2023,Completesave.Co.Uk,Residential and Nursing Team,Supplies and Services Expenditure,15
08/12/2023,,LB of Brent,10/09/2023,Amazon.Co.Uk,Digital Post Room,Stationery,66
08/12/2023,,LB of Brent,10/09/2023,Amazon Prime,Registration and Nationality Service,Supplies and Services Expenditure,7.49
08/12/2023,,LB of Brent,10/09/2023,Tesco Stores 5890,ICP Transformation Team,Supplies and Services Expenditure,38.76
08/12/2023,,LB of Brent,10/09/2023,British Gas Online,TA Property Management,Supplies and Services Expenditure,94.29
08/12/2023,,LB of Brent,10/09/2023,Scottish Power,NAIL Property Management,Supplies and Services Expenditure,83.33
08/12/2023,,LB of Brent,10/09/2023,Scottish Power,NAIL Property Management,Supplies and Services Expenditure,166.67
08/12/2023,,LB of Brent,11/09/2023,Food Express,Smart Team,Supplies and Services Expenditure,20
08/12/2023,,LB of Brent,11/09/2023,Tesco Stores Ltd 6468,Smart Team,Supplies and Services Expenditure,21.35
08/12/2023,,LB of Brent,11/09/2023,Amznmktplace,Customer Access Improvement and Performance,Stationery,9.96
08/12/2023,,LB of Brent,11/09/2023,Amznmktplace,Customer Access Improvement and Performance,Stationery,16.52
08/12/2023,,LB of Brent,11/09/2023,Amznmktplace,Civic Centre Conference and Events,Stationery,31
08/12/2023,,LB of Brent,11/09/2023,Amznmktplace,Community Hubs,Stationery,146.2
08/12/2023,,LB of Brent,11/09/2023,Amznmktplace,Community Hubs,Stationery,146.21
08/12/2023,,LB of Brent,11/09/2023,Amznmktplace,Community Hubs,Stationery,172.76
08/12/2023,,LB of Brent,11/09/2023,Travelodge Gb0000,Housing Needs Accommodation Team,Supplies and Services Expenditure,403.85
08/12/2023,,LB of Brent,11/09/2023,Travelodge Gb0000,Housing Needs Accommodation Team,Supplies and Services Expenditure,531.35
08/12/2023,,LB of Brent,11/09/2023,Travelodge Gb0000,Housing Needs Accommodation Team,Supplies and Services Expenditure,960.37
08/12/2023,,LB of Brent,11/09/2023,Asda Groceries Online,Willows Nursery,Supplies and Services Expenditure,-6.1
08/12/2023,,LB of Brent,11/09/2023,Asda Groceries Online,Willows Nursery,Supplies and Services Expenditure,75.02
08/12/2023,,LB of Brent,11/09/2023,Www.Ico.Org.Uk,Information Governance,Financial Services,2900
08/12/2023,,LB of Brent,11/09/2023,Prezzee/Gbb39d11f3,Brent Family Solutions,Supplies and Services Expenditure,30
08/12/2023,,LB of Brent,11/09/2023,Amznmktplace,Brent Family Solutions,Supplies and Services Expenditure,37.96
08/12/2023,,LB of Brent,11/09/2023,Sainsburys Wembley,Brent Family Solutions,Supplies and Services Expenditure,90
08/12/2023,,LB of Brent,11/09/2023,Prezzee/Gb080e6623,Brent Family Solutions,Supplies and Services Expenditure,100
08/12/2023,,LB of Brent,11/09/2023,Nhs Confederation,ICP Transformation Team,Supplies and Services Expenditure,356.4
08/12/2023,,LB of Brent,11/09/2023,Paypal,Bridge Park Facilities,Supplies and Services Expenditure,260
08/12/2023,,LB of Brent,12/09/2023,Amznmktplace,Civic Centre Conference and Events,Stationery,39.69
08/12/2023,,LB of Brent,12/09/2023,Chiltern Railways,Smart Team,Supplies and Services Expenditure,17.2
08/12/2023,,LB of Brent,12/09/2023,Ebay Commerce UK Ltd,Fostering Support Team B,Supplies and Services Expenditure,20.95
08/12/2023,,LB of Brent,12/09/2023,Www.Fabricinspirations,Fostering Support Team B,Supplies and Services Expenditure,50.75
08/12/2023,,LB of Brent,12/09/2023,C2e865600483u Ukvi,Public Health Operational,Human Resources,3199
08/12/2023,,LB of Brent,12/09/2023,Amazon* 205-1850382-88,Chief Execs,Stationery,18.5
08/12/2023,,LB of Brent,12/09/2023,Amznmktplace,Community Hubs,Stationery,32.78
08/12/2023,,LB of Brent,12/09/2023,Bkg*hotel At Booking.C,Homes for Ukraine Scheme,Human Resources - Training and Conferences,48.43
08/12/2023,,LB of Brent,12/09/2023,Amznmktplace,Customer Access Improvement and Performance,Stationery,59.99
08/12/2023,,LB of Brent,12/09/2023,Amznmktplace,Community Hubs,Stationery,66.4
08/12/2023,,LB of Brent,12/09/2023,Www.Johnlewis.Com,Operational Costs - Facilities,Stationery,599.17
08/12/2023,,LB of Brent,12/09/2023,Premier Inn,Housing Needs Accommodation Team,Supplies and Services Expenditure,312.8
08/12/2023,,LB of Brent,12/09/2023,Sadie Best Western Hot,Housing Needs Accommodation Team,Supplies and Services Expenditure,349.6
08/12/2023,,LB of Brent,12/09/2023,Premier Inn,Housing Needs Accommodation Team,Supplies and Services Expenditure,368
08/12/2023,,LB of Brent,12/09/2023,Sadie Best Western Hot,Housing Needs Accommodation Team,Supplies and Services Expenditure,397.6
08/12/2023,,LB of Brent,12/09/2023,Premier Inn,Housing Needs Accommodation Team,Supplies and Services Expenditure,625.6
08/12/2023,,LB of Brent,12/09/2023,Amznmktplace,Operational Costs - Facilities,Supplies and Services Expenditure,4.67
08/12/2023,,LB of Brent,12/09/2023,Amznmktplace,Operational Costs - Facilities,Supplies and Services Expenditure,8.07
08/12/2023,,LB of Brent,12/09/2023,Amznmktplace,Operational Costs - Facilities,Supplies and Services Expenditure,9.14
08/12/2023,,LB of Brent,12/09/2023,Amznmktplace,Operational Costs - Facilities,Supplies and Services Expenditure,49.49
08/12/2023,,LB of Brent,12/09/2023,Amznmktplace,Operational Costs - Facilities,Supplies and Services Expenditure,74.12
08/12/2023,,LB of Brent,12/09/2023,Amznmktplace,Operational Costs - Facilities,Supplies and Services Expenditure,99.7
08/12/2023,,LB of Brent,12/09/2023,Ebay Commerce UK Ltd,Heritage,Arts and Leisure Services,37.73
08/12/2023,,LB of Brent,12/09/2023,Costco Wholesale #128,Wembley Learning Zone,Supplies and Services Expenditure,11.18
08/12/2023,,LB of Brent,12/09/2023,Hmcts Probate,Legal Support,Supplies and Services Expenditure,3
08/12/2023,,LB of Brent,12/09/2023,Lul Ticket Machine,Brent Family Solutions,Supplies and Services Expenditure,20
08/12/2023,,LB of Brent,12/09/2023,Lul Ticket Machine,Early Years Central Services,Supplies and Services Expenditure,20
08/12/2023,,LB of Brent,12/09/2023,Argos Wembley West Olympi,Brent Family Solutions,Supplies and Services Expenditure,30
08/12/2023,,LB of Brent,12/09/2023,Lul Ticket Machine,Brent Family Solutions,Supplies and Services Expenditure,50
08/12/2023,,LB of Brent,12/09/2023,Lul Ticket Machine,Early Years Central Services,Supplies and Services Expenditure,60
08/12/2023,,LB of Brent,12/09/2023,Lul Ticket Machine,Early Years Central Services,Supplies and Services Expenditure,60
08/12/2023,,LB of Brent,12/09/2023,Lul Ticket Machine,Early Years Central Services,Supplies and Services Expenditure,60
08/12/2023,,LB of Brent,12/09/2023,Trainline,Campaigns and Media,Supplies and Services Expenditure,35.43
08/12/2023,,LB of Brent,12/09/2023,Trainline,Campaigns and Media,Supplies and Services Expenditure,54.68
08/12/2023,,LB of Brent,12/09/2023,Kelvingrove Hotel,Campaigns and Media,Supplies and Services Expenditure,82.37
08/12/2023,,LB of Brent,12/09/2023,Rs Components,STS TRM RoadMap Project,Information Communication Technology,61.13
08/12/2023,,LB of Brent,12/09/2023,Rs Components,STS TRM RoadMap Project,Information Communication Technology,183.38
08/12/2023,,LB of Brent,12/09/2023,Vine,Campaigns and Media,Supplies and Services Expenditure,67.5
08/12/2023,,LB of Brent,13/09/2023,Tesco Stores 2122,Short Break Centre,Supplies and Services Expenditure,114.87
08/12/2023,,LB of Brent,13/09/2023,Wickes Cricklewood,Estate Cleaning Team,Supplies and Services Expenditure,49
08/12/2023,,LB of Brent,13/09/2023,Amznmktplace,Customer Access Improvement and Performance,Stationery,3.98
08/12/2023,,LB of Brent,13/09/2023,Amznmktplace,Customer Access Improvement and Performance,Stationery,3.98
08/12/2023,,LB of Brent,13/09/2023,Amznmktplace,Customer Access Improvement and Performance,Stationery,15
08/12/2023,,LB of Brent,13/09/2023,Amznmktplace,Customer Access Improvement and Performance,Stationery,113.99
08/12/2023,,LB of Brent,13/09/2023,Amznmktplace,Customer Access Improvement and Performance,Stationery,113.99
08/12/2023,,LB of Brent,13/09/2023,Amznmktplace,Customer Access Improvement and Performance,Stationery,119.98
08/12/2023,,LB of Brent,13/09/2023,Premier Inn,Housing Needs Accommodation Team,Supplies and Services Expenditure,190.4
08/12/2023,,LB of Brent,13/09/2023,Premier Inn,Housing Needs Accommodation Team,Supplies and Services Expenditure,190.4
08/12/2023,,LB of Brent,13/09/2023,Premier Inn,Housing Needs Accommodation Team,Supplies and Services Expenditure,190.4
08/12/2023,,LB of Brent,13/09/2023,Premier Inn,Housing Needs Accommodation Team,Supplies and Services Expenditure,190.4
08/12/2023,,LB of Brent,13/09/2023,Premier Inn,Housing Needs Accommodation Team,Supplies and Services Expenditure,380.8
08/12/2023,,LB of Brent,13/09/2023,Namesco,IT Operations,Supplies and Services Expenditure,5.99
08/12/2023,,LB of Brent,13/09/2023,Amazon.Co.Uk,Legal Support,Stationery,36.63
08/12/2023,,LB of Brent,13/09/2023,Sainsburys S/Mkts,Heritage,Arts and Leisure Services,6.45
08/12/2023,,LB of Brent,13/09/2023,Amznmktplace,Family Hubs and Start for Life,Supplies and Services Expenditure,43.9
08/12/2023,,LB of Brent,13/09/2023,Amznmktplace,Brent Family Solutions,Supplies and Services Expenditure,249.26
08/12/2023,,LB of Brent,13/09/2023,Tesco Stores 2080,Gordon Brown Outdoor Education Centre,Supplies and Services Expenditure,186.22
08/12/2023,,LB of Brent,14/09/2023,Brent Parking,Estate Cleaning Team,Supplies and Services Expenditure,9
08/12/2023,,LB of Brent,14/09/2023,Amznmktplace,Customer Access Improvement and Performance,Stationery,3.98
08/12/2023,,LB of Brent,14/09/2023,Amazon.Co.Uk,Customer Access Improvement and Performance,Stationery,5.89
08/12/2023,,LB of Brent,14/09/2023,Amazon.Co.Uk,Customer Access Improvement and Performance,Stationery,3.98
08/12/2023,,LB of Brent,14/09/2023,Amznmktplace,Customer Access Improvement and Performance,Stationery,59.99
08/12/2023,,LB of Brent,14/09/2023,Amazon.Co.Uk,Customer Access Improvement and Performance,Stationery,115.64
08/12/2023,,LB of Brent,14/09/2023,Amznmktplace,Customer Access Improvement and Performance,Stationery,116.24
08/12/2023,,LB of Brent,14/09/2023,Amznmktplace,Customer Access Improvement and Performance,Stationery,15
08/12/2023,,LB of Brent,14/09/2023,Travelodge Gb0000,Housing Needs Accommodation Team,Supplies and Services Expenditure,293.71
08/12/2023,,LB of Brent,14/09/2023,Travelodge Gb0000,Housing Needs Accommodation Team,Supplies and Services Expenditure,293.71
08/12/2023,,LB of Brent,14/09/2023,Travelodge Gb0000,Housing Needs Accommodation Team,Supplies and Services Expenditure,435.48
08/12/2023,,LB of Brent,14/09/2023,Travelodge Gb0000,Housing Needs Accommodation Team,Supplies and Services Expenditure,686.4
08/12/2023,,LB of Brent,14/09/2023,Post Office Counter,Afghan Resettlement Scheme,Supplies and Services Expenditure,12.5
08/12/2023,,LB of Brent,14/09/2023,Post Office Counter,Afghan Resettlement Scheme,Supplies and Services Expenditure,12.5
08/12/2023,,LB of Brent,14/09/2023,Post Office Counter,Afghan Resettlement Scheme,Supplies and Services Expenditure,16.67
08/12/2023,,LB of Brent,14/09/2023,Tesco Stores 2122,Afghan Resettlement Scheme,Supplies and Services Expenditure,273.84
08/12/2023,,LB of Brent,14/09/2023,Amznmktplace,Enforcement,Stationery,16.5
08/12/2023,,LB of Brent,14/09/2023,Costco Wholesale #128,Wembley Learning Zone,Supplies and Services Expenditure,93.79
08/12/2023,,LB of Brent,14/09/2023,Sainsburys S/Mkts,Emergency Planning,Facilities and Management Services,28.46
08/12/2023,,LB of Brent,14/09/2023,Prezzee/Gb839633bf,Brent Family Solutions,Supplies and Services Expenditure,30
08/12/2023,,LB of Brent,14/09/2023,Premier Inn,Housing Needs Accommodation Team,Supplies and Services Expenditure,100
08/12/2023,,LB of Brent,15/09/2023,1password,IT Operations,Supplies and Services Expenditure,5250.13
08/12/2023,,LB of Brent,15/09/2023,Tfl Oyster Auto Topup,NAIL Property Management,Supplies and Services Expenditure,16.67
08/12/2023,,LB of Brent,15/09/2023,Hobbycraft Maidenhead,Fostering Support Team B,Supplies and Services Expenditure,18
08/12/2023,,LB of Brent,15/09/2023,Amazon.Co.Uk,Leasehold Management,Stationery,109.97
08/12/2023,,LB of Brent,15/09/2023,Premier Inn,Housing Needs Accommodation Team,Supplies and Services Expenditure,272
08/12/2023,,LB of Brent,15/09/2023,Premier Inn,Housing Needs Accommodation Team,Supplies and Services Expenditure,275.4
08/12/2023,,LB of Brent,15/09/2023,Premier Inn,Housing Needs Accommodation Team,Supplies and Services Expenditure,339.15
08/12/2023,,LB of Brent,15/09/2023,Travelodge Gb0000,Housing Needs Accommodation Team,Supplies and Services Expenditure,370.42
08/12/2023,,LB of Brent,15/09/2023,Premier Inn,Housing Needs Accommodation Team,Supplies and Services Expenditure,389.3
08/12/2023,,LB of Brent,15/09/2023,Premier Inn,Housing Needs Accommodation Team,Supplies and Services Expenditure,389.3
08/12/2023,,LB of Brent,15/09/2023,Premier Inn,Housing Needs Accommodation Team,Supplies and Services Expenditure,463.25
08/12/2023,,LB of Brent,15/09/2023,Travelodge Gb0000,Housing Needs Accommodation Team,Supplies and Services Expenditure,475.27
08/12/2023,,LB of Brent,15/09/2023,Premier Inn,Housing Needs Accommodation Team,Supplies and Services Expenditure,528
08/12/2023,,LB of Brent,15/09/2023,Travelodge Gb0000,Housing Needs Accommodation Team,Supplies and Services Expenditure,708.59
08/12/2023,,LB of Brent,15/09/2023,Premier Inn,Housing Needs Accommodation Team,Supplies and Services Expenditure,771.8
08/12/2023,,LB of Brent,15/09/2023,2co.Com*filezillapro.C 21,IT Operations,Supplies and Services Expenditure,74.97
08/12/2023,,LB of Brent,15/09/2023,Amznmktplace,Education Welfare Service,Stationery,5.23
08/12/2023,,LB of Brent,15/09/2023,Tesco Gift Card,Brent Family Solutions,Supplies and Services Expenditure,30
08/12/2023,,LB of Brent,15/09/2023,Canva* I03909-32416305,Housing Partnerships Service,Supplies and Services Expenditure,10.99
08/12/2023,,LB of Brent,16/09/2023,Tesco Stores 2122,Short Break Centre,Supplies and Services Expenditure,201.61
08/12/2023,,LB of Brent,16/09/2023,Marsdens,Bridge Park Facilities,Supplies and Services Expenditure,177
08/12/2023,,LB of Brent,16/09/2023,Sainsburys S/Mkts,Fostering Support Team B,Supplies and Services Expenditure,3.5
08/12/2023,,LB of Brent,16/09/2023,Dunelm Ltd,Willows Nursery,Supplies and Services Expenditure,50
08/12/2023,,LB of Brent,17/09/2023,Sumup *queens Park Day,Fostering Support Team B,Supplies and Services Expenditure,35
08/12/2023,,LB of Brent,17/09/2023,Amznmktplace,Brent Family Solutions,Supplies and Services Expenditure,38.79
08/12/2023,,LB of Brent,17/09/2023,British Gas Online,NAIL Property Management,Supplies and Services Expenditure,82.5
08/12/2023,,LB of Brent,17/09/2023,British Gas Online,NAIL Property Management,Supplies and Services Expenditure,82.5
08/12/2023,,LB of Brent,17/09/2023,British Gas Online,NAIL Property Management,Supplies and Services Expenditure,82.5
08/12/2023,,LB of Brent,17/09/2023,British Gas Online,NAIL Property Management,Supplies and Services Expenditure,82.5
08/12/2023,,LB of Brent,17/09/2023,Scottish Power,NAIL Property Management,Supplies and Services Expenditure,83.33
08/12/2023,,LB of Brent,17/09/2023,Scottish Power,NAIL Property Management,Supplies and Services Expenditure,166.67
08/12/2023,,LB of Brent,18/09/2023,Amznmktplace,Physical Activity - Adults,Stationery,7.24
08/12/2023,,LB of Brent,18/09/2023,Amznmktplace,Physical Activity - Adults,Stationery,11.38
08/12/2023,,LB of Brent,18/09/2023,B & Q 1051,Estate Cleaning Team,Supplies and Services Expenditure,73
08/12/2023,,LB of Brent,18/09/2023,Www.Screwfix.Com,Gordon Brown Outdoor Education Centre,Supplies and Services Expenditure,149.88
08/12/2023,,LB of Brent,18/09/2023,Amznmktplace,Management (Customer Services),Stationery,9.9
08/12/2023,,LB of Brent,18/09/2023,Amazon* 205-1850382-88,Chief Execs,Stationery,-18.5
08/12/2023,,LB of Brent,18/09/2023,Amznmktplace,Community Hubs,Stationery,23.83
08/12/2023,,LB of Brent,18/09/2023,Amznmktplace,Community Hubs,Stationery,23.83
08/12/2023,,LB of Brent,18/09/2023,Amazon* 205-8029709-48,Civic Centre Conference and Events,Stationery,44.73
08/12/2023,,LB of Brent,18/09/2023,Amazon* 205-3248798-20,Assessment,Stationery,93.38
08/12/2023,,LB of Brent,18/09/2023,Travelodge Gb0000,Housing Needs Accommodation Team,Supplies and Services Expenditure,195.81
08/12/2023,,LB of Brent,18/09/2023,Travelodge Gb0000,Housing Needs Accommodation Team,Supplies and Services Expenditure,365.12
08/12/2023,,LB of Brent,18/09/2023,Travelodge Gb0000,Housing Needs Accommodation Team,Supplies and Services Expenditure,387.56
08/12/2023,,LB of Brent,18/09/2023,Travelodge Gb0000,Housing Needs Accommodation Team,Supplies and Services Expenditure,387.56
08/12/2023,,LB of Brent,18/09/2023,Travelodge Gb0000,Housing Needs Accommodation Team,Supplies and Services Expenditure,387.56
08/12/2023,,LB of Brent,18/09/2023,Premier Inn,Housing Needs Accommodation Team,Supplies and Services Expenditure,616
08/12/2023,,LB of Brent,18/09/2023,Asda Groceries Online,Willows Nursery,Supplies and Services Expenditure,53.81
08/12/2023,,LB of Brent,18/09/2023,Amznmktplace,Brent Family Solutions,Supplies and Services Expenditure,9.98
08/12/2023,,LB of Brent,18/09/2023,Sp Tableprotectordir,Brent Family Solutions,Supplies and Services Expenditure,146.46
08/12/2023,,LB of Brent,18/09/2023,Tesco Stores 2080,Gordon Brown Outdoor Education Centre,Supplies and Services Expenditure,-1.45
08/12/2023,,LB of Brent,18/09/2023,Tesco Stores 2080,Gordon Brown Outdoor Education Centre,Supplies and Services Expenditure,120.84
08/12/2023,,LB of Brent,19/09/2023,Amazon.Co.Uk,Leasehold Management,Stationery,3.98
08/12/2023,,LB of Brent,19/09/2023,Amznmktplace,Community Hubs,Stationery,23.99
08/12/2023,,LB of Brent,19/09/2023,Atlassian,Digital Comms,Supplies and Services Expenditure,9.99
08/12/2023,,LB of Brent,19/09/2023,Tesco Stores 6186,Smart Team,Supplies and Services Expenditure,22.85
08/12/2023,,LB of Brent,19/09/2023,Amazon.Co.Uk,Brent Sicts,Information Communication Technology,20.92
08/12/2023,,LB of Brent,19/09/2023,Amznmktplace,Chief Execs,Stationery,16.99
08/12/2023,,LB of Brent,19/09/2023,Amznmktplace,Food Safety,Stationery,22.95
08/12/2023,,LB of Brent,19/09/2023,Travelodge Gb0000,Housing Needs Accommodation Team,Supplies and Services Expenditure,220.29
08/12/2023,,LB of Brent,19/09/2023,Travelodge Gb0000,Housing Needs Accommodation Team,Supplies and Services Expenditure,265.17
08/12/2023,,LB of Brent,19/09/2023,Premier Inn,Housing Needs Accommodation Team,Supplies and Services Expenditure,266.9
08/12/2023,,LB of Brent,19/09/2023,Travelodge Gb0000,Housing Needs Accommodation Team,Supplies and Services Expenditure,268.23
08/12/2023,,LB of Brent,19/09/2023,Travelodge Gb0000,Housing Needs Accommodation Team,Supplies and Services Expenditure,302.9
08/12/2023,,LB of Brent,19/09/2023,Premier Inn,Housing Needs Accommodation Team,Supplies and Services Expenditure,639.2
08/12/2023,,LB of Brent,19/09/2023,Sainsburys S/mkts,Heritage,Arts and Leisure Services,1.2
08/12/2023,,LB of Brent,19/09/2023,National Dry Clean,Heritage,Arts and Leisure Services,147.3
08/12/2023,,LB of Brent,19/09/2023,Novotel London Wemble,Emergency Planning,Facilities and Management Services,50
08/12/2023,,LB of Brent,19/09/2023,Novotel London Wemble,Emergency Planning,Facilities and Management Services,426.67
08/12/2023,,LB of Brent,20/09/2023,Mentimeter Basic,Community Engagement,Financial Services,119.83
08/12/2023,,LB of Brent,20/09/2023,Www.Argos.Co.Uk,Homes for Ukraine Scheme,Stationery,120.72
08/12/2023,,LB of Brent,20/09/2023,Premier Inn,Housing Needs Accommodation Team,Supplies and Services Expenditure,221.85
08/12/2023,,LB of Brent,20/09/2023,Premier Inn,Housing Needs Accommodation Team,Supplies and Services Expenditure,346.8
08/12/2023,,LB of Brent,20/09/2023,Travelodge Gb0000,Housing Needs Accommodation Team,Supplies and Services Expenditure,831.7
08/12/2023,,LB of Brent,20/09/2023,Marks&spencer Plc,Afghan Resettlement Scheme,Supplies and Services Expenditure,785.79
08/12/2023,,LB of Brent,20/09/2023,Tesco Stores 2080,Gordon Brown Outdoor Education Centre,Supplies and Services Expenditure,181.15
08/12/2023,,LB of Brent,20/09/2023,Brent Council,Parish Liaison,Financial Services,11
08/12/2023,,LB of Brent,20/09/2023,Brent Council,Parish Liaison,Financial Services,11
08/12/2023,,LB of Brent,20/09/2023,Brent Council,Parish Liaison,Financial Services,11
08/12/2023,,LB of Brent,20/09/2023,Premier Inn,Housing Needs Accommodation Team,Supplies and Services Expenditure,-221.85
08/12/2023,,LB of Brent,21/09/2023,Tesco Stores 2122,Short Break Centre,Supplies and Services Expenditure,-8.6
08/12/2023,,LB of Brent,21/09/2023,Tesco Stores 2122,Short Break Centre,Supplies and Services Expenditure,165.27
08/12/2023,,LB of Brent,21/09/2023,Brent Parking,Estate Cleaning Team,Supplies and Services Expenditure,2
08/12/2023,,LB of Brent,21/09/2023,Screwfix Dir Ltd,Gordon Brown Outdoor Education Centre,Supplies and Services Expenditure,66.82
08/12/2023,,LB of Brent,21/09/2023,Ukvisafee6yaa02015205,Public Health Operational,Human Resources,479
08/12/2023,,LB of Brent,21/09/2023,Premier Inn,Development Control,Human Resources - Training and Conferences,407.5
08/12/2023,,LB of Brent,21/09/2023,Travelodge Gb0000,Housing Needs Accommodation Team,Supplies and Services Expenditure,87.7
08/12/2023,,LB of Brent,21/09/2023,Travelodge Gb0000,Housing Needs Accommodation Team,Supplies and Services Expenditure,87.7
08/12/2023,,LB of Brent,21/09/2023,Travelodge Gb0000,Housing Needs Accommodation Team,Supplies and Services Expenditure,108.1
08/12/2023,,LB of Brent,21/09/2023,Travelodge Gb0000,Housing Needs Accommodation Team,Supplies and Services Expenditure,108.1
08/12/2023,,LB of Brent,21/09/2023,Travelodge Gb0000,Housing Needs Accommodation Team,Supplies and Services Expenditure,108.1
08/12/2023,,LB of Brent,21/09/2023,Travelodge Gb0000,Housing Needs Accommodation Team,Supplies and Services Expenditure,109.23
08/12/2023,,LB of Brent,21/09/2023,Premier Inn,Housing Needs Accommodation Team,Supplies and Services Expenditure,153
08/12/2023,,LB of Brent,21/09/2023,Premier Inn,Housing Needs Accommodation Team,Supplies and Services Expenditure,336.6
08/12/2023,,LB of Brent,22/09/2023,Shell Kilburn,Estate Cleaning Team,Supplies and Services Expenditure,20.02
08/12/2023,,LB of Brent,22/09/2023,Shell Kilburn,Estate Cleaning Team,Supplies and Services Expenditure,28.75
08/12/2023,,LB of Brent,22/09/2023,Www.Argos.Co.Uk,NAIL Property Management,Supplies and Services Expenditure,56.62
08/12/2023,,LB of Brent,22/09/2023,Sportsdirect 370,Bridge Park Facilities,Supplies and Services Expenditure,8.5
08/12/2023,,LB of Brent,22/09/2023,Trainline,Corporate Communications Unit,Supplies and Services Expenditure,55.91
08/12/2023,,LB of Brent,22/09/2023,Premier Inn,Corporate Communications Unit,Supplies and Services Expenditure,259
08/12/2023,,LB of Brent,22/09/2023,Squarespace Inc.,Brent Sicts,Information Communication Technology,204
08/12/2023,,LB of Brent,22/09/2023,Paypal,Corporate Communications Unit,Education,850
08/12/2023,,LB of Brent,22/09/2023,Travelodge Gb0000,Housing Needs Accommodation Team,Supplies and Services Expenditure,165.21
08/12/2023,,LB of Brent,22/09/2023,Travelodge Gb0000,Housing Needs Accommodation Team,Supplies and Services Expenditure,483.43
08/12/2023,,LB of Brent,22/09/2023,Travelodge Gb0000,Housing Needs Accommodation Team,Supplies and Services Expenditure,487.5
08/12/2023,,LB of Brent,22/09/2023,Travelodge Gb0000,Housing Needs Accommodation Team,Supplies and Services Expenditure,488.52
08/12/2023,,LB of Brent,22/09/2023,Travelodge Gb0000,Housing Needs Accommodation Team,Supplies and Services Expenditure,488.52
08/12/2023,,LB of Brent,22/09/2023,Travelodge Gb0000,Housing Needs Accommodation Team,Supplies and Services Expenditure,489.55
08/12/2023,,LB of Brent,22/09/2023,Travelodge Gb0000,Housing Needs Accommodation Team,Supplies and Services Expenditure,548.71
08/12/2023,,LB of Brent,22/09/2023,Travelodge Gb0000,Housing Needs Accommodation Team,Supplies and Services Expenditure,567.06
08/12/2023,,LB of Brent,22/09/2023,Travelodge Gb0000,Housing Needs Accommodation Team,Supplies and Services Expenditure,616.02
08/12/2023,,LB of Brent,22/09/2023,Travelodge Gb0000,Housing Needs Accommodation Team,Supplies and Services Expenditure,669.83
08/12/2023,,LB of Brent,22/09/2023,Travelodge Gb0000,Housing Needs Accommodation Team,Supplies and Services Expenditure,734.31
08/12/2023,,LB of Brent,22/09/2023,Travelodge Gb0000,Housing Needs Accommodation Team,Supplies and Services Expenditure,870.97
08/12/2023,,LB of Brent,22/09/2023,Travelodge Gb0000,Housing Needs Accommodation Team,Supplies and Services Expenditure,895.47
08/12/2023,,LB of Brent,22/09/2023,Travelodge Gb0000,Housing Needs Accommodation Team,Supplies and Services Expenditure,952.59
08/12/2023,,LB of Brent,22/09/2023,Www.Jam-Software.Com,IT Operations,Supplies and Services Expenditure,64.15
08/12/2023,,LB of Brent,22/09/2023,Amznmktplace,Brent Family Solutions,Supplies and Services Expenditure,251.75
08/12/2023,,LB of Brent,22/09/2023,Premier Inn,Corporate Communications Unit,Supplies and Services Expenditure,259
08/12/2023,,LB of Brent,22/09/2023,Tvlicensing.Co.Uk,Short Break Centre,Supplies and Services Expenditure,159
08/12/2023,,LB of Brent,23/09/2023,Amznmktplace,Chief Execs,Stationery,18.5
08/12/2023,,LB of Brent,23/09/2023,Thomson Reuters UK Ltd,Legal Support,Supplies and Services Expenditure,192
08/12/2023,,LB of Brent,24/09/2023,Tesco Stores 2122,Short Break Centre,Supplies and Services Expenditure,57.59
08/12/2023,,LB of Brent,24/09/2023,Hotjar,Digital Comms,Supplies and Services Expenditure,84.94
08/12/2023,,LB of Brent,24/09/2023,Scottish Power,NAIL Property Management,Supplies and Services Expenditure,83.33
08/12/2023,,LB of Brent,24/09/2023,Scottish Power,NAIL Property Management,Supplies and Services Expenditure,166.67
08/12/2023,,LB of Brent,25/09/2023,B & Q 1051,Estate Cleaning Team,Supplies and Services Expenditure,4.34
08/12/2023,,LB of Brent,25/09/2023,Dyetts Locks & Keys,Estate Cleaning Team,Supplies and Services Expenditure,4.99
08/12/2023,,LB of Brent,25/09/2023,Shell Willesden,Estate Cleaning Team,Supplies and Services Expenditure,59.23
08/12/2023,,LB of Brent,25/09/2023,Tesco Stores 2080,Gordon Brown Outdoor Education Centre,Supplies and Services Expenditure,13.6
08/12/2023,,LB of Brent,25/09/2023,Donate Via Caf,Public Health Miscellaneous,Catering,225
08/12/2023,,LB of Brent,25/09/2023,Trainline,Corporate Communications Unit,Supplies and Services Expenditure,56.97
08/12/2023,,LB of Brent,25/09/2023,Eventbrite.Com Org Fee,Corporate Communications Unit,Supplies and Services Expenditure,59
08/12/2023,,LB of Brent,25/09/2023,Travelodge Gb0000,Housing Needs Accommodation Team,Supplies and Services Expenditure,341.66
08/12/2023,,LB of Brent,25/09/2023,Asda Groceries Online,Willows Nursery,Supplies and Services Expenditure,-8.5
08/12/2023,,LB of Brent,25/09/2023,Asda Groceries Online,Willows Nursery,Supplies and Services Expenditure,112.51
08/12/2023,,LB of Brent,25/09/2023,Hills Quarry Products,Gordon Brown Outdoor Education Centre,Supplies and Services Expenditure,612.81
08/12/2023,,LB of Brent,26/09/2023,Harrow Arts Centre,Short Break Centre,Supplies and Services Expenditure,37
08/12/2023,,LB of Brent,26/09/2023,Asap Distribution,Short Break Centre,Supplies and Services Expenditure,65.99
08/12/2023,,LB of Brent,26/09/2023,Tesco Stores 6186,Smart Team,Supplies and Services Expenditure,29.35
08/12/2023,,LB of Brent,26/09/2023,Homebase,Bridge Park Facilities,Supplies and Services Expenditure,9.17
08/12/2023,,LB of Brent,26/09/2023,Amznmktplace,Chief Execs,Stationery,3.39
08/12/2023,,LB of Brent,26/09/2023,Travelodge Gb0000,Housing Needs Accommodation Team,Supplies and Services Expenditure,319.22
08/12/2023,,LB of Brent,26/09/2023,Travelodge Gb0000,Housing Needs Accommodation Team,Supplies and Services Expenditure,319.22
08/12/2023,,LB of Brent,26/09/2023,Travelodge Gb0000,Housing Needs Accommodation Team,Supplies and Services Expenditure,319.22
08/12/2023,,LB of Brent,26/09/2023,Travelodge Gb0000,Housing Needs Accommodation Team,Supplies and Services Expenditure,319.22
08/12/2023,,LB of Brent,26/09/2023,Travelodge Gb0000,Housing Needs Accommodation Team,Supplies and Services Expenditure,720.05
08/12/2023,,LB of Brent,26/09/2023,Travelodge Gb0000,Housing Needs Accommodation Team,Supplies and Services Expenditure,720.05
08/12/2023,,LB of Brent,26/09/2023,Travelodge Gb0000,Housing Needs Accommodation Team,Supplies and Services Expenditure,720.05
08/12/2023,,LB of Brent,26/09/2023,Workspace Group Plc,Adults Local Safeguarding Board,Supplies and Services Expenditure,60
08/12/2023,,LB of Brent,26/09/2023,Wly,Willows Nursery,Supplies and Services Expenditure,15
08/12/2023,,LB of Brent,26/09/2023,Miro.Com,IT Operations,Supplies and Services Expenditure,71.55
08/12/2023,,LB of Brent,26/09/2023,Amznmktplace,Gordon Brown Outdoor Education Centre,Supplies and Services Expenditure,59.94
08/12/2023,,LB of Brent,26/09/2023,Tesco Stores 2080,Gordon Brown Outdoor Education Centre,Supplies and Services Expenditure,123.07
08/12/2023,,LB of Brent,26/09/2023,Travelodge Gb0000,Housing Needs Housing Options Team,Supplies and Services Expenditure,147.49
08/12/2023,,LB of Brent,27/09/2023,Dyetts Locks & Keys,TA Property Management,Supplies and Services Expenditure,39.92
08/12/2023,,LB of Brent,27/09/2023,The Range,Gordon Brown Outdoor Education Centre,Supplies and Services Expenditure,21.89
08/12/2023,,LB of Brent,27/09/2023,Amznmktplace,Member Services,Facilities and Management Services,11.94
08/12/2023,,LB of Brent,27/09/2023,Travelodge Gb0000,Housing Needs Accommodation Team,Supplies and Services Expenditure,263.13
08/12/2023,,LB of Brent,27/09/2023,Travelodge Gb0000,Housing Needs Accommodation Team,Supplies and Services Expenditure,402.84
08/12/2023,,LB of Brent,27/09/2023,Travelodge Gb0000,Housing Needs Accommodation Team,Supplies and Services Expenditure,434.46
08/12/2023,,LB of Brent,27/09/2023,Travelodge Gb0000,Housing Needs Accommodation Team,Supplies and Services Expenditure,446.71
08/12/2023,,LB of Brent,27/09/2023,Travelodge Gb0000,Housing Needs Accommodation Team,Supplies and Services Expenditure,475.26
08/12/2023,,LB of Brent,27/09/2023,Travelodge Gb0000,Housing Needs Accommodation Team,Supplies and Services Expenditure,606.84
08/12/2023,,LB of Brent,27/09/2023,Travelodge Gb0000,Housing Needs Accommodation Team,Supplies and Services Expenditure,819.97
08/12/2023,,LB of Brent,27/09/2023,Hmctslondoncse077,Debt and Income,Supplies and Services Expenditure,323
08/12/2023,,LB of Brent,27/09/2023,Amznmktplace,Gordon Brown Outdoor Education Centre,Supplies and Services Expenditure,7.49
08/12/2023,,LB of Brent,27/09/2023,Wix.Com 1077498879,Brent Sicts,Information Communication Technology,132
08/12/2023,,LB of Brent,28/09/2023,Tesco Stores 2122,Short Break Centre,Supplies and Services Expenditure,93.13
08/12/2023,,LB of Brent,28/09/2023,Brent Parking,Estate Cleaning Team,Supplies and Services Expenditure,2
08/12/2023,,LB of Brent,28/09/2023,Shell Wembley Park,Estate Cleaning Team,Supplies and Services Expenditure,74.15
08/12/2023,,LB of Brent,28/09/2023,Zaks Shoe Service,TA Property Management,Supplies and Services Expenditure,7
08/12/2023,,LB of Brent,28/09/2023,Tex Hook,Gordon Brown Outdoor Education Centre,Supplies and Services Expenditure,100.37
08/12/2023,,LB of Brent,28/09/2023,Tex Hook,Gordon Brown Outdoor Education Centre,Supplies and Services Expenditure,118.29
08/12/2023,,LB of Brent,28/09/2023,John Lyon Flowers,Member Services,Arts and Leisure Services,40
08/12/2023,,LB of Brent,28/09/2023,Travelodge Gb0000,Housing Needs Accommodation Team,Supplies and Services Expenditure,377.34
08/12/2023,,LB of Brent,28/09/2023,Travelodge Gb0000,Housing Needs Accommodation Team,Supplies and Services Expenditure,386.52
08/12/2023,,LB of Brent,28/09/2023,Travelodge Gb0000,Housing Needs Accommodation Team,Supplies and Services Expenditure,465.06
08/12/2023,,LB of Brent,28/09/2023,Travelodge Gb0000,Housing Needs Accommodation Team,Supplies and Services Expenditure,532.38
08/12/2023,,LB of Brent,28/09/2023,Travelodge Gb0000,Housing Needs Accommodation Team,Supplies and Services Expenditure,591.51
08/12/2023,,LB of Brent,28/09/2023,Travelodge Gb0000,Housing Needs Accommodation Team,Supplies and Services Expenditure,824.93
08/12/2023,,LB of Brent,28/09/2023,Asda Groceries Online,Willows Nursery,Supplies and Services Expenditure,6.5
08/12/2023,,LB of Brent,28/09/2023,Lidl Gb London,Willows Nursery,Supplies and Services Expenditure,15.03
08/12/2023,,LB of Brent,28/09/2023,2maa040587920 Td E-Pmt,Syrian Refugees Project,Supplies and Services Expenditure,141
08/12/2023,,LB of Brent,28/09/2023,2maa040587741 Td E-Pmt,Syrian Refugees Project,Supplies and Services Expenditure,141
08/12/2023,,LB of Brent,28/09/2023,2maa040587874 Td E-Pmt,Syrian Refugees Project,Supplies and Services Expenditure,141
08/12/2023,,LB of Brent,28/09/2023,2maa040587801 Td E-Pmt,Syrian Refugees Project,Supplies and Services Expenditure,141
08/12/2023,,LB of Brent,28/09/2023,2maa040587617 Td E-Pmt,Syrian Refugees Project,Supplies and Services Expenditure,280
08/12/2023,,LB of Brent,28/09/2023,Amznmktplace,Customer Access Improvement and Performance,Stationery,5.82
08/12/2023,,LB of Brent,28/09/2023,Amznmktplace,Civic Centre - Av,Stationery,6.65
08/12/2023,,LB of Brent,28/09/2023,Amznmktplace,Civic Centre - Av,Stationery,10.82
08/12/2023,,LB of Brent,28/09/2023,Amznmktplace,Civic Centre - Av,Stationery,17.79
08/12/2023,,LB of Brent,28/09/2023,Amznmktplace,Civic Centre - Av,Stationery,19.96
08/12/2023,,LB of Brent,28/09/2023,Amznmktplace,Civic Centre - Av,Stationery,99.86
08/12/2023,,LB of Brent,28/09/2023,Hse - Bsr,Asset Compliance Team,Environmental Services,251
08/12/2023,,LB of Brent,28/09/2023,Travelodge Gb0000,Void Works,Environmental Services,339.56
08/12/2023,,LB of Brent,28/09/2023,Amznmktplace,Gordon Brown Outdoor Education Centre,Supplies and Services Expenditure,129.95
08/12/2023,,LB of Brent,28/09/2023,Amznmktplace,Gordon Brown Outdoor Education Centre,Supplies and Services Expenditure,209.95
08/12/2023,,LB of Brent,28/09/2023,Tfl Roadchg Stdautopay,Building Cleaning,Supplies and Services Expenditure,822.92
08/12/2023,,LB of Brent,28/09/2023,Paypal,Syrian Refugees Project,Supplies and Services Expenditure,126.89
08/12/2023,,LB of Brent,29/09/2023,Shell Willesden,Estate Cleaning Team,Supplies and Services Expenditure,50
08/12/2023,,LB of Brent,29/09/2023,Travelodge Gb0000,Housing Needs Accommodation Team,Supplies and Services Expenditure,412.01
08/12/2023,,LB of Brent,29/09/2023,Travelodge Gb0000,Housing Needs Accommodation Team,Supplies and Services Expenditure,666
08/12/2023,,LB of Brent,29/09/2023,Travelodge Gb0000,Housing Needs Accommodation Team,Supplies and Services Expenditure,695.58
08/12/2023,,LB of Brent,29/09/2023,Travelodge Gb0000,Housing Needs Accommodation Team,Supplies and Services Expenditure,799.61
08/12/2023,,LB of Brent,29/09/2023,Travelodge Gb0000,Housing Needs Accommodation Team,Supplies and Services Expenditure,826.09
08/12/2023,,LB of Brent,29/09/2023,Travelodge Gb0000,Housing Needs Accommodation Team,Supplies and Services Expenditure,853.6
08/12/2023,,LB of Brent,29/09/2023,Travelodge Gb0000,Housing Needs Accommodation Team,Supplies and Services Expenditure,891.39
08/12/2023,,LB of Brent,29/09/2023,Amazon.Co.Uk,Legal Support,Stationery,16.33
08/12/2023,,LB of Brent,29/09/2023,Sainsburys S/mkts,Heritage,Supplies and Services Expenditure,3.4
08/12/2023,,LB of Brent,29/09/2023,Amznmktplace,Cemeteries Admin,Stationery,22.98
08/12/2023,,LB of Brent,29/09/2023,Amznmktplace,Cemeteries Admin,Stationery,53.3
08/12/2023,,LB of Brent,29/09/2023,Trainline,Housing Needs Housing Options Team,Supplies and Services Expenditure,102.15
08/12/2023,,LB of Brent,01/10/2023,Tesco Stores 2122,Short Break Centre,Supplies and Services Expenditure,94.76
08/12/2023,,LB of Brent,01/10/2023,Tfl Oyster Auto Topup,Central Overheads,Supplies and Services Expenditure,20
08/12/2023,,LB of Brent,01/10/2023,Flickr Pro Monthly,Digital Comms,Supplies and Services Expenditure,6.99
08/12/2023,,LB of Brent,01/10/2023,Amznmktplace,Cemeteries Admin,Stationery,45.98
08/12/2023,,LB of Brent,02/10/2023,Msft * E0600p6vu6,IT Operations,Supplies and Services Expenditure,5.4
08/12/2023,,LB of Brent,02/10/2023,Amznmktplace,Short Break Centre,Supplies and Services Expenditure,5.49
08/12/2023,,LB of Brent,02/10/2023,Amznmktplace,Short Break Centre,Supplies and Services Expenditure,14.57
08/12/2023,,LB of Brent,02/10/2023,Scottish Power,NAIL Property Management,Supplies and Services Expenditure,83.33
08/12/2023,,LB of Brent,02/10/2023,Scottish Power,NAIL Property Management,Supplies and Services Expenditure,166.67
08/12/2023,,LB of Brent,02/10/2023,Tesco Stores 2080,Gordon Brown Outdoor Education Centre,Supplies and Services Expenditure,16.6
08/12/2023,,LB of Brent,02/10/2023,Intellisoftware Ltd,Southwark IT Shared Service,Information Communication Technology,10
08/12/2023,,LB of Brent,02/10/2023,Amznmktplace,Cemeteries Admin,Stationery,51.84
08/12/2023,,LB of Brent,02/10/2023,Amznmktplace,Cemeteries Admin,Stationery,28.99
08/12/2023,,LB of Brent,02/10/2023,Currys Online,Single Homelessness Team,Stationery,899.25
08/12/2023,,LB of Brent,02/10/2023,Travelodge Gb0000,Housing Needs Accommodation Team,Supplies and Services Expenditure,80.56
08/12/2023,,LB of Brent,02/10/2023,Travelodge Gb0000,Housing Needs Accommodation Team,Supplies and Services Expenditure,90.51
08/12/2023,,LB of Brent,02/10/2023,Travelodge Gb0000,Housing Needs Accommodation Team,Supplies and Services Expenditure,123.4
08/12/2023,,LB of Brent,02/10/2023,Travelodge Gb0000,Housing Needs Accommodation Team,Supplies and Services Expenditure,134.17
08/12/2023,,LB of Brent,02/10/2023,Travelodge Gb0000,Housing Needs Accommodation Team,Supplies and Services Expenditure,144.82
08/12/2023,,LB of Brent,02/10/2023,Travelodge Gb0000,Housing Needs Accommodation Team,Supplies and Services Expenditure,337.58
08/12/2023,,LB of Brent,02/10/2023,Travelodge Gb0000,Housing Needs Accommodation Team,Supplies and Services Expenditure,351.1
08/12/2023,,LB of Brent,02/10/2023,Travelodge Gb0000,Housing Needs Accommodation Team,Supplies and Services Expenditure,370.22
08/12/2023,,LB of Brent,02/10/2023,Travelodge Gb0000,Housing Needs Accommodation Team,Supplies and Services Expenditure,371.35
08/12/2023,,LB of Brent,02/10/2023,Travelodge Gb0000,Housing Needs Accommodation Team,Supplies and Services Expenditure,397.25
08/12/2023,,LB of Brent,02/10/2023,Travelodge Gb0000,Housing Needs Accommodation Team,Supplies and Services Expenditure,649.67
08/12/2023,,LB of Brent,02/10/2023,Asda Groceries Online,Willows Nursery,Supplies and Services Expenditure,-4.8
08/12/2023,,LB of Brent,02/10/2023,Amazon Prime,Willows Nursery,Supplies and Services Expenditure,7.49
08/12/2023,,LB of Brent,02/10/2023,Asda Groceries Online,Willows Nursery,Supplies and Services Expenditure,52.47
08/12/2023,,LB of Brent,02/10/2023,Www.Argos.Co.Uk,Referral and Assessment Team 5,Supplies and Services Expenditure,122.95
08/12/2023,,LB of Brent,02/10/2023,Gsuite_bmsstaff.Com,Brent Music Service,Supplies and Services Expenditure,184
08/12/2023,,LB of Brent,02/10/2023,Amazon.Co.Uk,Parking Admin,Stationery,16.63
08/12/2023,,LB of Brent,02/10/2023,Visme,Wembley Learning Zone,Supplies and Services Expenditure,49.41
08/12/2023,,LB of Brent,02/10/2023,Www.Westminster.Gov.Uk,Legal Support,Supplies and Services Expenditure,350
08/12/2023,,LB of Brent,02/10/2023,Sra,Legal Support,Supplies and Services Expenditure,12517
08/12/2023,,LB of Brent,02/10/2023,Amznmktplace,Cemeteries Admin,Stationery,57.88
08/12/2023,,LB of Brent,02/10/2023,Eb *project Management,Homes for Ukraine Scheme,Human Resources - Training and Conferences,-161
08/12/2023,,LB of Brent,02/10/2023,Amznmktplace,Brent Family Solutions,Supplies and Services Expenditure,13.99
08/12/2023,,LB of Brent,02/10/2023,Lul Ticket Machine,Brent Family Solutions,Supplies and Services Expenditure,30
08/12/2023,,LB of Brent,02/10/2023,Amznmktplace,Brent Family Solutions,Supplies and Services Expenditure,44.97
08/12/2023,,LB of Brent,02/10/2023,Lul Ticket Machine,Brent Family Solutions,Supplies and Services Expenditure,50
08/12/2023,,LB of Brent,02/10/2023,Lul Ticket Machine,Brent Family Solutions,Supplies and Services Expenditure,50
08/12/2023,,LB of Brent,02/10/2023,Lul Ticket Machine,Brent Family Solutions,Supplies and Services Expenditure,50
08/12/2023,,LB of Brent,02/10/2023,Tesco Stores 2122,Brent Family Solutions,Supplies and Services Expenditure,60
08/12/2023,,LB of Brent,02/10/2023,Inside Housing Online,Housing Partnerships Service,Supplies and Services Expenditure,178
08/12/2023,,LB of Brent,02/10/2023,The Early Bird,Housing Partnerships Service,Supplies and Services Expenditure,288
08/12/2023,,LB of Brent,03/10/2023,Amazon.Co.Uk,Housing Needs Accommodation Team,Stationery,10.98
08/12/2023,,LB of Brent,03/10/2023,Posturite Ltd,Community Hubs,Stationery,501.39
08/12/2023,,LB of Brent,03/10/2023,Travelodge Gb0000,Housing Needs Accommodation Team,Supplies and Services Expenditure,261.09
08/12/2023,,LB of Brent,03/10/2023,Travelodge Gb0000,Housing Needs Accommodation Team,Supplies and Services Expenditure,486.47
08/12/2023,,LB of Brent,03/10/2023,Travelodge Gb0000,Housing Needs Accommodation Team,Supplies and Services Expenditure,803.69
08/12/2023,,LB of Brent,03/10/2023,Hmcts Westlondon073,Debt and Income,Supplies and Services Expenditure,49
08/12/2023,,LB of Brent,03/10/2023,Ee Limited,Brent Music Service,Supplies and Services Expenditure,500
08/12/2023,,LB of Brent,03/10/2023,Ace Clothing Company,Syrian Refugees Project,Supplies and Services Expenditure,243.29
08/12/2023,,LB of Brent,03/10/2023,Amznmktplace,Trading Standards - Brent,Stationery,3.32
08/12/2023,,LB of Brent,03/10/2023,Amznmktplace,No Recourse To Public Funds Team,Stationery,5.82
08/12/2023,,LB of Brent,03/10/2023,Amznmktplace,Legal Support,Stationery,20.83
08/12/2023,,LB of Brent,03/10/2023,Visme,Wembley Learning Zone,Supplies and Services Expenditure,227.71
08/12/2023,,LB of Brent,03/10/2023,Eb *supporting Refugee,Homes for Ukraine Scheme,Human Resources - Training and Conferences,470
08/12/2023,,LB of Brent,03/10/2023,Sainsburys Smkt,Brent Family Solutions,Supplies and Services Expenditure,40
08/12/2023,,LB of Brent,03/10/2023,Lul Ticket Machine,Brent Family Solutions,Supplies and Services Expenditure,50
08/12/2023,,LB of Brent,03/10/2023,Www.Ico.Org.Uk,Brent Family Solutions,Supplies and Services Expenditure,60
08/12/2023,,LB of Brent,03/10/2023,Amznmktplace,Gordon Brown Outdoor Education Centre,Supplies and Services Expenditure,14.34
08/12/2023,,LB of Brent,03/10/2023,Nisbets Ltd,Gordon Brown Outdoor Education Centre,Supplies and Services Expenditure,19.76
08/12/2023,,LB of Brent,03/10/2023,Amznbusiness,Gordon Brown Outdoor Education Centre,Supplies and Services Expenditure,29.72
08/12/2023,,LB of Brent,03/10/2023,Amznbusiness,Gordon Brown Outdoor Education Centre,Supplies and Services Expenditure,12.42
08/12/2023,,LB of Brent,03/10/2023,Tesco Stores 2080,Gordon Brown Outdoor Education Centre,Supplies and Services Expenditure,84.54
08/12/2023,,LB of Brent,03/10/2023,British Gas Online,TA Property Management,Supplies and Services Expenditure,94.29
08/12/2023,,LB of Brent,03/10/2023,British Gas Online,TA Property Management,Supplies and Services Expenditure,94.29
08/12/2023,,LB of Brent,03/10/2023,British Gas Online,TA Property Management,Supplies and Services Expenditure,94.29
08/12/2023,,LB of Brent,03/10/2023,British Gas Online,TA Property Management,Supplies and Services Expenditure,94.29
08/12/2023,,LB of Brent,03/10/2023,British Gas Online,TA Property Management,Supplies and Services Expenditure,94.29
08/12/2023,,LB of Brent,03/10/2023,Paypal,Syrian Refugees Project,Supplies and Services Expenditure,129.88
08/12/2023,,LB of Brent,04/10/2023,Amznmktplace,Short Break Centre,Supplies and Services Expenditure,6.29
08/12/2023,,LB of Brent,04/10/2023,Amznmktplace,Short Break Centre,Supplies and Services Expenditure,3.49
08/12/2023,,LB of Brent,04/10/2023,Amznmktplace,Short Break Centre,Supplies and Services Expenditure,21.54
08/12/2023,,LB of Brent,04/10/2023,Shell Willesden,Estate Cleaning Team,Supplies and Services Expenditure,54.47
08/12/2023,,LB of Brent,04/10/2023,The Safety Letterbox Comp,TA Property Management,Supplies and Services Expenditure,349.05
08/12/2023,,LB of Brent,04/10/2023,Dh Water Gardens Limit,Gordon Brown Outdoor Education Centre,Supplies and Services Expenditure,130
08/12/2023,,LB of Brent,04/10/2023,Ebay O*05-10621-71866,Fostering Support Team B,Supplies and Services Expenditure,19.7
08/12/2023,,LB of Brent,04/10/2023,Amznmktplace,Bcs Customer Service Centre,Stationery,12.99
08/12/2023,,LB of Brent,04/10/2023,Furniture@work Ltd,Customer Access Improvement and Performance,Stationery,121
08/12/2023,,LB of Brent,04/10/2023,Travelodge Gb0000,Housing Needs Accommodation Team,Supplies and Services Expenditure,152.97
08/12/2023,,LB of Brent,04/10/2023,Travelodge Gb0000,Housing Needs Accommodation Team,Supplies and Services Expenditure,152.97
08/12/2023,,LB of Brent,04/10/2023,Travelodge Gb0000,Housing Needs Accommodation Team,Supplies and Services Expenditure,196.83
08/12/2023,,LB of Brent,04/10/2023,Travelodge Gb0000,Housing Needs Accommodation Team,Supplies and Services Expenditure,196.83
08/12/2023,,LB of Brent,04/10/2023,Travelodge Gb0000,Housing Needs Accommodation Team,Supplies and Services Expenditure,393.67
08/12/2023,,LB of Brent,04/10/2023,Travelodge Gb0000,Housing Needs Accommodation Team,Supplies and Services Expenditure,393.67
08/12/2023,,LB of Brent,04/10/2023,Travelodge Gb0000,Housing Needs Accommodation Team,Supplies and Services Expenditure,430.38
08/12/2023,,LB of Brent,04/10/2023,Travelodge Gb0000,Housing Needs Accommodation Team,Supplies and Services Expenditure,468.45
08/12/2023,,LB of Brent,04/10/2023,Sp Astra Cases Uk,IT Operations,Supplies and Services Expenditure,94.47
08/12/2023,,LB of Brent,04/10/2023,Sainsburys S/mkts,Heritage,Supplies and Services Expenditure,1.8
08/12/2023,,LB of Brent,04/10/2023,Amznmktplace,Brent Family Solutions,Supplies and Services Expenditure,32.99
08/12/2023,,LB of Brent,04/10/2023,Paypal,Syrian Refugees Project,Supplies and Services Expenditure,238.39
08/12/2023,,LB of Brent,05/10/2023,Tesco Stores 2122,Short Break Centre,Supplies and Services Expenditure,-0.75
08/12/2023,,LB of Brent,05/10/2023,Tesco Stores 2122,Short Break Centre,Supplies and Services Expenditure,133.36
08/12/2023,,LB of Brent,05/10/2023,Evaq8,Gordon Brown Outdoor Education Centre,Supplies and Services Expenditure,847.44
08/12/2023,,LB of Brent,05/10/2023,Canva* I03929-34761150,Physical Activity - Adults,Supplies and Services Expenditure,63.75
08/12/2023,,LB of Brent,05/10/2023,Trainline,Campaigns and Media,Human Resources - Travel and Subsistence - Taxi Fares,117.22
08/12/2023,,LB of Brent,05/10/2023,Travelodge Gb0000,Housing Needs Accommodation Team,Supplies and Services Expenditure,353.88
08/12/2023,,LB of Brent,05/10/2023,Travelodge Gb0000,Housing Needs Accommodation Team,Supplies and Services Expenditure,375.31
08/12/2023,,LB of Brent,05/10/2023,Travelodge Gb0000,Housing Needs Accommodation Team,Supplies and Services Expenditure,464.05
08/12/2023,,LB of Brent,05/10/2023,Travelodge Gb0000,Housing Needs Accommodation Team,Supplies and Services Expenditure,573.18
08/12/2023,,LB of Brent,05/10/2023,Travelodge Gb0000,Housing Needs Accommodation Team,Supplies and Services Expenditure,573.18
08/12/2023,,LB of Brent,05/10/2023,Travelodge Gb0000,Housing Needs Accommodation Team,Supplies and Services Expenditure,607.86
08/12/2023,,LB of Brent,05/10/2023,Travelodge Gb0000,Housing Needs Accommodation Team,Supplies and Services Expenditure,609.9
08/12/2023,,LB of Brent,05/10/2023,Travelodge Gb0000,Housing Needs Accommodation Team,Supplies and Services Expenditure,838.35
08/12/2023,,LB of Brent,05/10/2023,Travelodge Gb0000,Housing Needs Accommodation Team,Supplies and Services Expenditure,838.35
08/12/2023,,LB of Brent,05/10/2023,Costco Wholesale #128,Social Services Directorate,Supplies and Services Expenditure,55.97
08/12/2023,,LB of Brent,05/10/2023,Currys Online,Syrian Refugees Project,Supplies and Services Expenditure,279
08/12/2023,,LB of Brent,05/10/2023,Amznmktplace,Civic Centre - Av,Stationery,2.99
08/12/2023,,LB of Brent,05/10/2023,Prezzee/Gbd9f013aa,Brent Family Solutions,Supplies and Services Expenditure,50
08/12/2023,,LB of Brent,05/10/2023,British Red Cross Soci,Alternative Education - Day 6 Exclusion,Supplies and Services Expenditure,346.8
08/12/2023,,LB of Brent,05/10/2023,Paypal,Syrian Refugees Project,Supplies and Services Expenditure,123.95
08/12/2023,,LB of Brent,05/10/2023,Paypal,Syrian Refugees Project,Supplies and Services Expenditure,493
08/12/2023,,LB of Brent,06/10/2023,Amznmktplace,Civic Centre - Av,Stationery,45.82
08/12/2023,,LB of Brent,06/10/2023,Asap Distribution,Civic Centre Conference and Events,Supplies and Services Expenditure,72
08/12/2023,,LB of Brent,06/10/2023,Zaks Shoe Service,TA Property Management,Supplies and Services Expenditure,7
08/12/2023,,LB of Brent,06/10/2023,British Gas Online,NAIL Property Management,Supplies and Services Expenditure,82.5
08/12/2023,,LB of Brent,06/10/2023,British Gas Online,NAIL Property Management,Supplies and Services Expenditure,82.5
08/12/2023,,LB of Brent,06/10/2023,British Gas Online,NAIL Property Management,Supplies and Services Expenditure,82.5
08/12/2023,,LB of Brent,06/10/2023,British Gas Online,NAIL Property Management,Supplies and Services Expenditure,82.5
08/12/2023,,LB of Brent,06/10/2023,British Gas Online,NAIL Property Management,Supplies and Services Expenditure,82.5
08/12/2023,,LB of Brent,06/10/2023,Travelodge Gb0000,Housing Needs Accommodation Team,Supplies and Services Expenditure,350.84
08/12/2023,,LB of Brent,06/10/2023,Travelodge Gb0000,Housing Needs Accommodation Team,Supplies and Services Expenditure,355.93
08/12/2023,,LB of Brent,06/10/2023,Travelodge Gb0000,Housing Needs Accommodation Team,Supplies and Services Expenditure,367.15
08/12/2023,,LB of Brent,06/10/2023,Travelodge Gb0000,Housing Needs Accommodation Team,Supplies and Services Expenditure,464.05
08/12/2023,,LB of Brent,06/10/2023,Travelodge Gb0000,Housing Needs Accommodation Team,Supplies and Services Expenditure,701.69
08/12/2023,,LB of Brent,06/10/2023,Travelodge Gb0000,Housing Needs Accommodation Team,Supplies and Services Expenditure,701.69
08/12/2023,,LB of Brent,06/10/2023,Security Watchdog,Early Years Central Services,Supplies and Services Expenditure,46.1
08/12/2023,,LB of Brent,07/10/2023,Amazon Prime,Brent Sicts,Information Communication Technology,7.49
08/12/2023,,LB of Brent,07/10/2023,Calendly,Member Development,Financial Services,51.04
08/12/2023,,LB of Brent,07/10/2023,Novotel London Wemble,Emergency Planning,Supplies and Services Expenditure,398
08/12/2023,,LB of Brent,07/10/2023,Novotel London Wemble,Emergency Planning,Supplies and Services Expenditure,398
08/12/2023,,LB of Brent,08/10/2023,Tesco Stores 2122,Short Break Centre,Supplies and Services Expenditure,58.76
08/12/2023,,LB of Brent,08/10/2023,Trainline,Smart Team,Supplies and Services Expenditure,18.42
08/12/2023,,LB of Brent,08/10/2023,Amazon.Co.Uk,Resources,Stationery,46.5
08/12/2023,,LB of Brent,08/10/2023,Amazon Prime,Childrens Social Care Business Support,Supplies and Services Expenditure,7.49
08/12/2023,,LB of Brent,09/10/2023,Scottish Power,NAIL Property Management,Supplies and Services Expenditure,83.33
08/12/2023,,LB of Brent,09/10/2023,Scottish Power,NAIL Property Management,Supplies and Services Expenditure,166.67
08/12/2023,,LB of Brent,09/10/2023,Scottish Power,NAIL Property Management,Supplies and Services Expenditure,166.67
08/12/2023,,LB of Brent,09/10/2023,Tesco Stores 2080,Gordon Brown Outdoor Education Centre,Supplies and Services Expenditure,19.2
08/12/2023,,LB of Brent,09/10/2023,Travelodge Gb0000,Housing Needs Accommodation Team,Supplies and Services Expenditure,89.74
08/12/2023,,LB of Brent,09/10/2023,Travelodge Gb0000,Housing Needs Accommodation Team,Supplies and Services Expenditure,381.44
08/12/2023,,LB of Brent,09/10/2023,Travelodge Gb0000,Housing Needs Accommodation Team,Supplies and Services Expenditure,413.06
08/12/2023,,LB of Brent,09/10/2023,Travelodge Gb0000,Housing Needs Accommodation Team,Supplies and Services Expenditure,628.25
08/12/2023,,LB of Brent,09/10/2023,Travelodge Gb0000,Housing Needs Accommodation Team,Supplies and Services Expenditure,732.29
08/12/2023,,LB of Brent,09/10/2023,Travelodge Gb0000,Housing Needs Accommodation Team,Supplies and Services Expenditure,762.89
08/12/2023,,LB of Brent,09/10/2023,Travelodge Gb0000,Housing Needs Accommodation Team,Supplies and Services Expenditure,781.25
08/12/2023,,LB of Brent,09/10/2023,Asda Groceries Online,Willows Nursery,Supplies and Services Expenditure,-3
08/12/2023,,LB of Brent,09/10/2023,Asda Groceries Online,Willows Nursery,Supplies and Services Expenditure,74.74
08/12/2023,,LB of Brent,09/10/2023,Moj Ospt Ecom,Housing Support Team,Supplies and Services Expenditure,40
08/12/2023,,LB of Brent,09/10/2023,Sainsburys Wembley,Emergency Planning,Supplies and Services Expenditure,2.7
08/12/2023,,LB of Brent,09/10/2023,Ebay O*03-10641-48980,Gordon Brown Outdoor Education Centre,Supplies and Services Expenditure,9.95
08/12/2023,,LB of Brent,09/10/2023,Gls Educational Su,Gordon Brown Outdoor Education Centre,Supplies and Services Expenditure,25.12
08/12/2023,,LB of Brent,10/10/2023,Amznmktplace,Gordon Brown Outdoor Education Centre,Supplies and Services Expenditure,19.96
08/12/2023,,LB of Brent,10/10/2023,Shell Willesden,Estate Cleaning Team,Supplies and Services Expenditure,39.62
08/12/2023,,LB of Brent,10/10/2023,Mini Mart News,Smart Team,Supplies and Services Expenditure,9.97
08/12/2023,,LB of Brent,10/10/2023,Tesco Stores 6186,Smart Team,Supplies and Services Expenditure,30.9
08/12/2023,,LB of Brent,10/10/2023,Screwfix Dir Ltd,Gordon Brown Outdoor Education Centre,Supplies and Services Expenditure,99.99
08/12/2023,,LB of Brent,10/10/2023,Westco Trading Ltd,Fostering Support Team B,Supplies and Services Expenditure,114
08/12/2023,,LB of Brent,10/10/2023,Facebk Gexhcuthq2,Campaigns and Media,Financial Services,200
08/12/2023,,LB of Brent,10/10/2023,Facebk Gexhcuthq2,Climate Emergency Budget,Information Communication Technology,122.44
08/12/2023,,LB of Brent,10/10/2023,Facebk Gexhcuthq2,Policy (Planning),Information Communication Technology,167.04
08/12/2023,,LB of Brent,10/10/2023,Facebk Gexhcuthq2,Climate Emergency Budget,Information Communication Technology,10.52
08/12/2023,,LB of Brent,10/10/2023,Amznmktplace,Civic Centre - Av,Stationery,5.73
08/12/2023,,LB of Brent,10/10/2023,Amznmktplace,HMO Licensing,Stationery,19.98
08/12/2023,,LB of Brent,10/10/2023,Amznmktplace,HMO Licensing,Stationery,223.06
08/12/2023,,LB of Brent,10/10/2023,Amznmktplace,HMO Licensing,Stationery,89.97
08/12/2023,,LB of Brent,10/10/2023,Amznmktplace,HMO Licensing,Stationery,43.98
08/12/2023,,LB of Brent,10/10/2023,Amznmktplace,Operational Costs - Facilities,Stationery,426.37
08/12/2023,,LB of Brent,10/10/2023,Completesave.Co.Uk,Residential and Nursing Team,Supplies and Services Expenditure,15
08/12/2023,,LB of Brent,10/10/2023,Www.Argos.Co.Uk,Residential and Nursing Team,Supplies and Services Expenditure,29.95
08/12/2023,,LB of Brent,10/10/2023,Travelodge Gb0000,Housing Needs Accommodation Team,Supplies and Services Expenditure,373.28
08/12/2023,,LB of Brent,10/10/2023,Travelodge Gb0000,Housing Needs Accommodation Team,Supplies and Services Expenditure,373.28
08/12/2023,,LB of Brent,10/10/2023,Travelodge Gb0000,Housing Needs Accommodation Team,Supplies and Services Expenditure,373.28
08/12/2023,,LB of Brent,10/10/2023,Travelodge Gb0000,Housing Needs Accommodation Team,Supplies and Services Expenditure,438.56
08/12/2023,,LB of Brent,10/10/2023,Travelodge Gb0000,Housing Needs Accommodation Team,Supplies and Services Expenditure,883.25
08/12/2023,,LB of Brent,10/10/2023,Www.Argos.Co.Uk,Afghan Resettlement Scheme,Supplies and Services Expenditure,28.33
08/12/2023,,LB of Brent,10/10/2023,Www.Argos.Co.Uk,Afghan Resettlement Scheme,Supplies and Services Expenditure,102.46
08/12/2023,,LB of Brent,10/10/2023,Ebay O*22-10635-29241,Afghan Resettlement Scheme,Supplies and Services Expenditure,209.88
08/12/2023,,LB of Brent,10/10/2023,Amazon Prime,Registration and Nationality Service,Supplies and Services Expenditure,7.49
08/12/2023,,LB of Brent,10/10/2023,Zettle_*angel Cars,Emergency Planning,Passenger Transport,227
08/12/2023,,LB of Brent,10/10/2023,Amznmktplace,Gordon Brown Outdoor Education Centre,Supplies and Services Expenditure,19.98
08/12/2023,,LB of Brent,11/10/2023,Amznmktplace,Brent Music Service,Supplies and Services Expenditure,20.98
08/12/2023,,LB of Brent,11/10/2023,Tesco Stores 2122,Short Break Centre,Supplies and Services Expenditure,116.79
08/12/2023,,LB of Brent,11/10/2023,Brent Parking,Estate Cleaning Team,Supplies and Services Expenditure,2
08/12/2023,,LB of Brent,11/10/2023,Tesco Stores 2080,Gordon Brown Outdoor Education Centre,Supplies and Services Expenditure,4
08/12/2023,,LB of Brent,11/10/2023,Marks&spencer Plc Sf,Gordon Brown Outdoor Education Centre,Supplies and Services Expenditure,7.75
08/12/2023,,LB of Brent,11/10/2023,Poundland Ltd - 1584,Gordon Brown Outdoor Education Centre,Supplies and Services Expenditure,15
08/12/2023,,LB of Brent,11/10/2023,Screwfix Dir Ltd,Gordon Brown Outdoor Education Centre,Supplies and Services Expenditure,84.55
08/12/2023,,LB of Brent,11/10/2023,Amznmktplace,Southwark Sicts Consumables,Information Communication Technology,16.66
08/12/2023,,LB of Brent,11/10/2023,Amznmktplace,Brent Sicts Consumables,Information Communication Technology,19.96
08/12/2023,,LB of Brent,11/10/2023,Amznmktplace,Lewisham Sicts Consumables,Information Communication Technology,430.35
08/12/2023,,LB of Brent,11/10/2023,Travelodge Gb0000,Housing Needs Accommodation Team,Supplies and Services Expenditure,295.77
08/12/2023,,LB of Brent,11/10/2023,Travelodge Gb0000,Housing Needs Accommodation Team,Supplies and Services Expenditure,295.77
08/12/2023,,LB of Brent,11/10/2023,Travelodge Gb0000,Housing Needs Accommodation Team,Supplies and Services Expenditure,462.01
08/12/2023,,LB of Brent,11/10/2023,Travelodge Gb0000,Housing Needs Accommodation Team,Supplies and Services Expenditure,591.55
08/12/2023,,LB of Brent,11/10/2023,Travelodge Gb0000,Housing Needs Accommodation Team,Supplies and Services Expenditure,591.55
08/12/2023,,LB of Brent,11/10/2023,Travelodge Gb0000,Housing Needs Accommodation Team,Supplies and Services Expenditure,619.09
08/12/2023,,LB of Brent,11/10/2023,Travelodge Gb0000,Housing Needs Accommodation Team,Supplies and Services Expenditure,737.39
08/12/2023,,LB of Brent,11/10/2023,Moj Ospt Ecom,Neighbourhood Services - Estate Services,Supplies and Services Expenditure,40
08/12/2023,,LB of Brent,11/10/2023,Amznmktplace,Afghan Resettlement Scheme,Supplies and Services Expenditure,52.01
08/12/2023,,LB of Brent,11/10/2023,Amznmktplace,Brent Family Solutions,Supplies and Services Expenditure,102.88
08/12/2023,,LB of Brent,12/10/2023,Shell Willesden,Estate Cleaning Team,Supplies and Services Expenditure,41.45
08/12/2023,,LB of Brent,12/10/2023,Amznmktplace,Member Services,Passenger Transport,28.98
08/12/2023,,LB of Brent,12/10/2023,Www.Voipon.Co.Uk,Southwark Sicts Consumables,Information Communication Technology,180.25
08/12/2023,,LB of Brent,12/10/2023,Asda Superstore 04881,Head of Property Services,Works - Construction Repair and Maintenance - Open Spaces,24
08/12/2023,,LB of Brent,12/10/2023,Asda Superstore 04881,Head of Property Services,Works - Construction Repair and Maintenance - Open Spaces,368.5
08/12/2023,,LB of Brent,12/10/2023,Amznmktplace,HMO Licensing,Stationery,-19.98
08/12/2023,,LB of Brent,12/10/2023,Amznmktplace,HMO Licensing,Stationery,-30.41
08/12/2023,,LB of Brent,12/10/2023,Stinkyink Com,CCTV,Stationery,87.43
08/12/2023,,LB of Brent,12/10/2023,Westco Trading Ltd,Corporate Communications Unit,Financial Services,95
08/12/2023,,LB of Brent,12/10/2023,Travelodge Gb0000,Housing Needs Accommodation Team,Supplies and Services Expenditure,303.91
08/12/2023,,LB of Brent,12/10/2023,Travelodge Gb0000,Housing Needs Accommodation Team,Supplies and Services Expenditure,422.22
08/12/2023,,LB of Brent,12/10/2023,Travelodge Gb0000,Housing Needs Accommodation Team,Supplies and Services Expenditure,434.44
08/12/2023,,LB of Brent,12/10/2023,Travelodge Gb0000,Housing Needs Accommodation Team,Supplies and Services Expenditure,445.67
08/12/2023,,LB of Brent,12/10/2023,Travelodge Gb0000,Housing Needs Accommodation Team,Supplies and Services Expenditure,487.51
08/12/2023,,LB of Brent,12/10/2023,Travelodge Gb0000,Housing Needs Accommodation Team,Supplies and Services Expenditure,498.73
08/12/2023,,LB of Brent,12/10/2023,Travelodge Gb0000,Housing Needs Accommodation Team,Supplies and Services Expenditure,511.99
08/12/2023,,LB of Brent,12/10/2023,Travelodge Gb0000,Housing Needs Accommodation Team,Supplies and Services Expenditure,601.73
08/12/2023,,LB of Brent,12/10/2023,Travelodge Gb0000,Housing Needs Accommodation Team,Supplies and Services Expenditure,975.03
08/12/2023,,LB of Brent,12/10/2023,Travelodge Gb0000,Housing Needs Accommodation Team,Supplies and Services Expenditure,975.03
08/12/2023,,LB of Brent,12/10/2023,Travelodge Gb0000,Housing Needs Accommodation Team,Supplies and Services Expenditure,979.11
08/12/2023,,LB of Brent,12/10/2023,Chartered Institute Of En,Food Safety,Supplies and Services Expenditure,170
08/12/2023,,LB of Brent,12/10/2023,Lul Ticket Machine,Brent Family Solutions,Supplies and Services Expenditure,20
08/12/2023,,LB of Brent,12/10/2023,Lul Ticket Machine,Brent Family Solutions,Supplies and Services Expenditure,50
08/12/2023,,LB of Brent,12/10/2023,Lul Ticket Machine,Brent Family Solutions,Supplies and Services Expenditure,50
08/12/2023,,LB of Brent,12/10/2023,Www.Cjam.Co.Uk,Corporate Communications Unit,Education,300
08/12/2023,,LB of Brent,13/10/2023,Shell Willesden,Estate Cleaning Team,Supplies and Services Expenditure,49.09
08/12/2023,,LB of Brent,13/10/2023,Travelodge Gb0846,Smart Team,Supplies and Services Expenditure,28.5
08/12/2023,,LB of Brent,13/10/2023,British Gas Online,NAIL Property Management,Supplies and Services Expenditure,82.5
08/12/2023,,LB of Brent,13/10/2023,British Gas Online,NAIL Property Management,Supplies and Services Expenditure,82.5
08/12/2023,,LB of Brent,13/10/2023,Paypal,Bridge Park Facilities,Supplies and Services Expenditure,40
08/12/2023,,LB of Brent,13/10/2023,Planning Portal Conf,Development Control,Human Resources - Training and Conferences,118.8
08/12/2023,,LB of Brent,13/10/2023,Bkg*hotel At Booking.C,Development Control,Human Resources - Training and Conferences,147.9
08/12/2023,,LB of Brent,13/10/2023,Namesco,Brent Sicts,Information Communication Technology,4.99
08/12/2023,,LB of Brent,13/10/2023,Amznmktplace,HMO Licensing,Stationery,56.4
08/12/2023,,LB of Brent,13/10/2023,Amznmktplace,HMO Licensing,Stationery,13.98
08/12/2023,,LB of Brent,13/10/2023,Amznmktplace,Parking Schemes,Stationery,188.99
08/12/2023,,LB of Brent,13/10/2023,Gambling Commission,Brent Community Lottery,Financial Services,796
08/12/2023,,LB of Brent,13/10/2023,Premier Inn,Housing Needs Accommodation Team,Supplies and Services Expenditure,492.15
08/12/2023,,LB of Brent,13/10/2023,Travelodge Gb0000,Housing Needs Accommodation Team,Supplies and Services Expenditure,495.67
08/12/2023,,LB of Brent,13/10/2023,Premier Inn,Housing Needs Accommodation Team,Supplies and Services Expenditure,520.2
08/12/2023,,LB of Brent,13/10/2023,Travelodge Gb0000,Housing Needs Accommodation Team,Supplies and Services Expenditure,538.72
08/12/2023,,LB of Brent,13/10/2023,Travelodge Gb0000,Housing Needs Accommodation Team,Supplies and Services Expenditure,575.21
08/12/2023,,LB of Brent,13/10/2023,London Guesthouse Limited,Housing Needs Accommodation Team,Supplies and Services Expenditure,618
08/12/2023,,LB of Brent,13/10/2023,London Guesthouse Limited,Housing Needs Accommodation Team,Supplies and Services Expenditure,618
08/12/2023,,LB of Brent,13/10/2023,Travelodge Gb0000,Housing Needs Accommodation Team,Supplies and Services Expenditure,634.39
08/12/2023,,LB of Brent,13/10/2023,Travelodge Gb0000,Housing Needs Accommodation Team,Supplies and Services Expenditure,680.28
08/12/2023,,LB of Brent,13/10/2023,Travelodge Gb0000,Housing Needs Accommodation Team,Supplies and Services Expenditure,746.55
08/12/2023,,LB of Brent,13/10/2023,Travelodge Gb0000,Housing Needs Accommodation Team,Supplies and Services Expenditure,758.42
08/12/2023,,LB of Brent,13/10/2023,Travelodge Gb0000,Housing Needs Accommodation Team,Supplies and Services Expenditure,764.91
08/12/2023,,LB of Brent,13/10/2023,Travelodge Gb0000,Housing Needs Accommodation Team,Supplies and Services Expenditure,991.35
08/12/2023,,LB of Brent,13/10/2023,Amznmktplace,Alternative Education - Day 6 Exclusion,Stationery,63.98
08/12/2023,,LB of Brent,14/10/2023,Tesco Stores 2122,Short Break Centre,Supplies and Services Expenditure,125.41
08/12/2023,,LB of Brent,14/10/2023,Timpson Ltd,Parish Liaison,Financial Services,20
08/12/2023,,LB of Brent,14/10/2023,Amznbusiness,Gordon Brown Outdoor Education Centre,Supplies and Services Expenditure,15.98
08/12/2023,,LB of Brent,15/10/2023,Canva* I03939-21120870,Housing Partnerships Service,Supplies and Services Expenditure,10.99
08/12/2023,,LB of Brent,15/10/2023,Scottish Power,NAIL Property Management,Supplies and Services Expenditure,83.33
08/12/2023,,LB of Brent,15/10/2023,Scottish Power,NAIL Property Management,Supplies and Services Expenditure,166.67
08/12/2023,,LB of Brent,15/10/2023,Scottish Power,NAIL Property Management,Supplies and Services Expenditure,166.67
08/12/2023,,LB of Brent,16/10/2023,Shell Willesden,Estate Cleaning Team,Supplies and Services Expenditure,63.21
08/12/2023,,LB of Brent,16/10/2023,Argos Kenton,Smart Team,Supplies and Services Expenditure,23.5
08/12/2023,,LB of Brent,16/10/2023,Ikea Ltd 461 Reading Main,Gordon Brown Outdoor Education Centre,Supplies and Services Expenditure,448.95
08/12/2023,,LB of Brent,16/10/2023,Hotel Crown,Fostering Support Team B,Supplies and Services Expenditure,380
08/12/2023,,LB of Brent,16/10/2023,Sainsburys S/Mkts,Member Services,Human Resources - Travel and Subsistence - Taxi Fares,17
08/12/2023,,LB of Brent,16/10/2023,Www.Voipon.Co.Uk,Southwark Sicts Consumables,Information Communication Technology,-180.25
08/12/2023,,LB of Brent,16/10/2023,Travelodge Gb0000,Housing Needs Accommodation Team,Supplies and Services Expenditure,81.58
08/12/2023,,LB of Brent,16/10/2023,Travelodge Gb0000,Housing Needs Accommodation Team,Supplies and Services Expenditure,107.08
08/12/2023,,LB of Brent,16/10/2023,Travelodge Gb0000,Housing Needs Accommodation Team,Supplies and Services Expenditure,234.56
08/12/2023,,LB of Brent,16/10/2023,Travelodge Gb0000,Housing Needs Accommodation Team,Supplies and Services Expenditure,424.27
08/12/2023,,LB of Brent,16/10/2023,Travelodge Gb0000,Housing Needs Accommodation Team,Supplies and Services Expenditure,822.07
08/12/2023,,LB of Brent,16/10/2023,Travelodge Gb0000,Housing Needs Accommodation Team,Supplies and Services Expenditure,962.81
08/12/2023,,LB of Brent,16/10/2023,Travelodge Gb0000,Housing Needs Accommodation Team,Supplies and Services Expenditure,962.81
08/12/2023,,LB of Brent,16/10/2023,Asda Groceries Online,Willows Nursery,Supplies and Services Expenditure,77.95
08/12/2023,,LB of Brent,16/10/2023,Moj Ospt Ecom,Neighbourhood Services - Estate Services,Supplies and Services Expenditure,40
08/12/2023,,LB of Brent,16/10/2023,Moj Ospt Ecom,Neighbourhood Services - Estate Services,Supplies and Services Expenditure,40
08/12/2023,,LB of Brent,16/10/2023,Moj Ospt Ecom,Housing Support Team,Supplies and Services Expenditure,40
08/12/2023,,LB of Brent,16/10/2023,Ofsted Internet,Willows Nursery,Supplies and Services Expenditure,220
08/12/2023,,LB of Brent,16/10/2023,Gls Educational Su,Gordon Brown Outdoor Education Centre,Supplies and Services Expenditure,28
08/12/2023,,LB of Brent,17/10/2023,Sainsburys S/Mkts,Smart Team,Supplies and Services Expenditure,29.75
08/12/2023,,LB of Brent,17/10/2023,Travelodge Gb0000,Housing Needs Accommodation Team,Supplies and Services Expenditure,330.45
08/12/2023,,LB of Brent,17/10/2023,Travelodge Gb0000,Housing Needs Accommodation Team,Supplies and Services Expenditure,398.78
08/12/2023,,LB of Brent,17/10/2023,Travelodge Gb0000,Housing Needs Accommodation Team,Supplies and Services Expenditure,488.03
08/12/2023,,LB of Brent,17/10/2023,Travelodge Gb0000,Housing Needs Accommodation Team,Supplies and Services Expenditure,562.97
08/12/2023,,LB of Brent,17/10/2023,Travelodge Gb0000,Housing Needs Accommodation Team,Supplies and Services Expenditure,690.47
08/12/2023,,LB of Brent,17/10/2023,Travelodge Gb0000,Housing Needs Accommodation Team,Supplies and Services Expenditure,691.51
08/12/2023,,LB of Brent,17/10/2023,Travelodge Gb0000,Housing Needs Accommodation Team,Supplies and Services Expenditure,707.81
08/12/2023,,LB of Brent,17/10/2023,Travelodge Gb0000,Housing Needs Accommodation Team,Supplies and Services Expenditure,766.93
08/12/2023,,LB of Brent,17/10/2023,Travelodge Gb0000,Housing Needs Accommodation Team,Supplies and Services Expenditure,797.57
08/12/2023,,LB of Brent,17/10/2023,Travelodge Gb0000,Housing Needs Accommodation Team,Supplies and Services Expenditure,832.25
08/12/2023,,LB of Brent,17/10/2023,Travelodge Gb0000,Housing Needs Accommodation Team,Supplies and Services Expenditure,845.82
08/12/2023,,LB of Brent,17/10/2023,Travelodge Gb0000,Housing Needs Accommodation Team,Supplies and Services Expenditure,856.73
08/12/2023,,LB of Brent,17/10/2023,Travelodge Gb0000,Housing Needs Accommodation Team,Supplies and Services Expenditure,858.76
08/12/2023,,LB of Brent,17/10/2023,Travelodge Gb0000,Housing Needs Accommodation Team,Supplies and Services Expenditure,889.37
08/12/2023,,LB of Brent,17/10/2023,Travelodge Gb0000,Housing Needs Accommodation Team,Supplies and Services Expenditure,940.37
08/12/2023,,LB of Brent,17/10/2023,The Entertainer,Heritage,Supplies and Services Expenditure,40
08/12/2023,,LB of Brent,17/10/2023,House Of Marbles,Heritage,Arts and Leisure Services,83.79
08/12/2023,,LB of Brent,17/10/2023,Enthuse.Com,Registration and Nationality Service,Supplies and Services Expenditure,250
08/12/2023,,LB of Brent,17/10/2023,Amznmktplace,Brent Family Solutions,Supplies and Services Expenditure,14.94
08/12/2023,,LB of Brent,17/10/2023,Amznmktplace,Brent Family Solutions,Supplies and Services Expenditure,52.88
08/12/2023,,LB of Brent,17/10/2023,Amznmktplace,Brent Family Solutions,Supplies and Services Expenditure,162.54
08/12/2023,,LB of Brent,17/10/2023,Amznmktplace,Brent Family Solutions,Supplies and Services Expenditure,186.06
08/12/2023,,LB of Brent,17/10/2023,Tesco Stores 2080,Gordon Brown Outdoor Education Centre,Supplies and Services Expenditure,155.92
08/12/2023,,LB of Brent,17/10/2023,Brent Council,Parish Liaison,Financial Services,22
08/12/2023,,LB of Brent,18/10/2023,Amznmktplace,Brent Sicts,Information Communication Technology,3.29
08/12/2023,,LB of Brent,18/10/2023,Zettle_*goldworks,Estate Cleaning Team,Supplies and Services Expenditure,19.99
08/12/2023,,LB of Brent,18/10/2023,Chiltern Railways,Smart Team,Supplies and Services Expenditure,28.55
08/12/2023,,LB of Brent,18/10/2023,Zaks Shoe Service,NAIL Property Management,Supplies and Services Expenditure,9
08/12/2023,,LB of Brent,18/10/2023,Zaks Shoe Service,NAIL Property Management,Supplies and Services Expenditure,12.5
08/12/2023,,LB of Brent,18/10/2023,Travelodge Gb0000,Housing Needs Accommodation Team,Supplies and Services Expenditure,303.92
08/12/2023,,LB of Brent,18/10/2023,Travelodge Gb0000,Housing Needs Accommodation Team,Supplies and Services Expenditure,384.48
08/12/2023,,LB of Brent,18/10/2023,Travelodge Gb0000,Housing Needs Accommodation Team,Supplies and Services Expenditure,430.38
08/12/2023,,LB of Brent,18/10/2023,Travelodge Gb0000,Housing Needs Accommodation Team,Supplies and Services Expenditure,513
08/12/2023,,LB of Brent,18/10/2023,Travelodge Gb0000,Housing Needs Accommodation Team,Supplies and Services Expenditure,643.97
08/12/2023,,LB of Brent,18/10/2023,Ikea Ltd Shop Online,Afghan Resettlement Scheme,Supplies and Services Expenditure,212.5
08/12/2023,,LB of Brent,18/10/2023,Ikea Ltd Shop Online,Afghan Resettlement Scheme,Supplies and Services Expenditure,355.83
08/12/2023,,LB of Brent,18/10/2023,Ikea Ltd Shop Online,Afghan Resettlement Scheme,Supplies and Services Expenditure,448.33
08/12/2023,,LB of Brent,18/10/2023,Amznmktplace,Kinship Team,Stationery,5.82
08/12/2023,,LB of Brent,18/10/2023,Trainline,Resident Services Corporate Director,Financial Services,91.45
08/12/2023,,LB of Brent,18/10/2023,The Society Of Local Auth,Resident Services Corporate Director,Financial Services,250
08/12/2023,,LB of Brent,18/10/2023,Tesco Stores 2122,Brent Family Solutions,Supplies and Services Expenditure,100
08/12/2023,,LB of Brent,18/10/2023,Amznmktplace,Brent Family Solutions,Supplies and Services Expenditure,139.91
08/12/2023,,LB of Brent,18/10/2023,Tesco Stores 2122,Brent Family Solutions,Supplies and Services Expenditure,300
08/12/2023,,LB of Brent,18/10/2023,Flip Out,Brent Family Solutions,Supplies and Services Expenditure,349
08/12/2023,,LB of Brent,18/10/2023,Gen Register Office,Housing Needs Housing Options Team,Supplies and Services Expenditure,11
08/12/2023,,LB of Brent,18/10/2023,Trainline,Housing Needs Housing Options Team,Supplies and Services Expenditure,81.37
08/12/2023,,LB of Brent,18/10/2023,Brent Council,Parish Liaison,Financial Services,11
08/12/2023,,LB of Brent,19/10/2023,Atlassian,Digital Comms,Supplies and Services Expenditure,10.19
08/12/2023,,LB of Brent,19/10/2023,Tesco Stores 2122,Short Break Centre,Supplies and Services Expenditure,126.97
08/12/2023,,LB of Brent,19/10/2023,Barry Bros Security Lim,Estate Cleaning Team,Supplies and Services Expenditure,16
08/12/2023,,LB of Brent,19/10/2023,Amazon.Co.Uk,Brent Sicts,Information Communication Technology,60.82
08/12/2023,,LB of Brent,19/10/2023,Amznmktplace,Customer Access Improvement and Performance,Stationery,79.99
08/12/2023,,LB of Brent,19/10/2023,Travelodge Gb0000,Housing Needs Accommodation Team,Supplies and Services Expenditure,89.74
08/12/2023,,LB of Brent,19/10/2023,Travelodge Gb0000,Housing Needs Accommodation Team,Supplies and Services Expenditure,352.87
08/12/2023,,LB of Brent,19/10/2023,Travelodge Gb0000,Housing Needs Accommodation Team,Supplies and Services Expenditure,466.07
08/12/2023,,LB of Brent,19/10/2023,Travelodge Gb0000,Housing Needs Accommodation Team,Supplies and Services Expenditure,484.45
08/12/2023,,LB of Brent,19/10/2023,Travelodge Gb0000,Housing Needs Accommodation Team,Supplies and Services Expenditure,484.45
08/12/2023,,LB of Brent,19/10/2023,Travelodge Gb0000,Housing Needs Accommodation Team,Supplies and Services Expenditure,516.03
08/12/2023,,LB of Brent,19/10/2023,Travelodge Gb0000,Housing Needs Accommodation Team,Supplies and Services Expenditure,525.25
08/12/2023,,LB of Brent,19/10/2023,Travelodge Gb0000,Housing Needs Accommodation Team,Supplies and Services Expenditure,642.54
08/12/2023,,LB of Brent,19/10/2023,Travelodge Gb0000,Housing Needs Accommodation Team,Supplies and Services Expenditure,642.54
08/12/2023,,LB of Brent,19/10/2023,Travelodge Gb0000,Housing Needs Accommodation Team,Supplies and Services Expenditure,833.19
08/12/2023,,LB of Brent,19/10/2023,Travelodge Gb0000,Housing Needs Accommodation Team,Supplies and Services Expenditure,854.67
08/12/2023,,LB of Brent,19/10/2023,Travelodge Gb0000,Housing Needs Accommodation Team,Supplies and Services Expenditure,854.67
08/12/2023,,LB of Brent,19/10/2023,Travelodge Gb0000,Housing Needs Accommodation Team,Supplies and Services Expenditure,938.31
08/12/2023,,LB of Brent,19/10/2023,Hmctslondoncse077,Debt and Income,Supplies and Services Expenditure,325.5
08/12/2023,,LB of Brent,19/10/2023,Lidl Gb London,Willows Nursery,Supplies and Services Expenditure,17.73
08/12/2023,,LB of Brent,19/10/2023,Dunelm Softfurnishings,Afghan Resettlement Scheme,Supplies and Services Expenditure,92.5
08/12/2023,,LB of Brent,19/10/2023,Amazon.Co.Uk,Rent Accounting Team,Stationery,4.98
08/12/2023,,LB of Brent,19/10/2023,Trainline,Registration and Nationality Service,Supplies and Services Expenditure,323.36
08/12/2023,,LB of Brent,19/10/2023,Trainline,Food Safety,Supplies and Services Expenditure,69.35
08/12/2023,,LB of Brent,19/10/2023,Bkg*hotel At Booking.C,Food Safety,Supplies and Services Expenditure,125.56
08/12/2023,,LB of Brent,19/10/2023,Amznmktplace,Gordon Brown Outdoor Education Centre,Supplies and Services Expenditure,9.7
08/12/2023,,LB of Brent,19/10/2023,Trial Tier2_month,Campaigns and Media,Financial Services,49
08/12/2023,,LB of Brent,19/10/2023,Eventbrite.Com Org Fee,SEN Assessment Service,Stationery,39.99
08/12/2023,,LB of Brent,19/10/2023,Gear4music Limited,Public Health Operational,Information Communication Technology,43.48
08/12/2023,,LB of Brent,19/10/2023,Paypal,Afghan Resettlement Scheme,Supplies and Services Expenditure,-45.83
08/12/2023,,LB of Brent,19/10/2023,Paypal,Afghan Resettlement Scheme,Supplies and Services Expenditure,93.26
08/12/2023,,LB of Brent,19/10/2023,Sports Direct,Afghan Resettlement Scheme,Supplies and Services Expenditure,247.88
08/12/2023,,LB of Brent,20/10/2023,Amazon.Co.Uk,Alternative Education - Management,Supplies and Services Expenditure,57.99
08/12/2023,,LB of Brent,20/10/2023,Post Office Counter,Short Break Centre,Supplies and Services Expenditure,8.15
08/12/2023,,LB of Brent,20/10/2023,Amznmktplace,Short Break Centre,Supplies and Services Expenditure,23.32
08/12/2023,,LB of Brent,20/10/2023,British Gas Online,TA Property Management,Supplies and Services Expenditure,94.29
08/12/2023,,LB of Brent,20/10/2023,British Gas Online,TA Property Management,Supplies and Services Expenditure,94.29
08/12/2023,,LB of Brent,20/10/2023,Facebk 62ljswbhq2,Policy (Planning),Information Communication Technology,32.96
08/12/2023,,LB of Brent,20/10/2023,Facebk 62ljswbhq2,Climate Emergency Budget,Information Communication Technology,77.56
08/12/2023,,LB of Brent,20/10/2023,Facebk 62ljswbhq2,Climate Emergency Budget,Information Communication Technology,189.48
08/12/2023,,LB of Brent,20/10/2023,Facebk 62ljswbhq2,ES and E - Business Grants,Information Communication Technology,199.98
08/12/2023,,LB of Brent,20/10/2023,Facebk 62ljswbhq2,Community Engagement,Information Communication Technology,0.02
08/12/2023,,LB of Brent,20/10/2023,Fs *techsmith,Lewisham IT Shared Service,Information Communication Technology,201.37
08/12/2023,,LB of Brent,20/10/2023,Amznmktplace,Cemeteries Admin,Stationery,17.19
08/12/2023,,LB of Brent,20/10/2023,The Society Of Local Auth,Chief Execs,Financial Services,350
08/12/2023,,LB of Brent,20/10/2023,Bristow And Sutor,Housing Needs Accommodation Team,Financial Services,602.23
08/12/2023,,LB of Brent,20/10/2023,Premier Inn,Housing Needs Accommodation Team,Supplies and Services Expenditure,272
08/12/2023,,LB of Brent,20/10/2023,Premier Inn,Housing Needs Accommodation Team,Supplies and Services Expenditure,288
08/12/2023,,LB of Brent,20/10/2023,Travelodge Gb0000,Housing Needs Accommodation Team,Supplies and Services Expenditure,591.51
08/12/2023,,LB of Brent,20/10/2023,Travelodge Gb0000,Housing Needs Accommodation Team,Supplies and Services Expenditure,611.92
08/12/2023,,LB of Brent,20/10/2023,Travelodge Gb0000,Housing Needs Accommodation Team,Supplies and Services Expenditure,615
08/12/2023,,LB of Brent,20/10/2023,Travelodge Gb0000,Housing Needs Accommodation Team,Supplies and Services Expenditure,624.18
08/12/2023,,LB of Brent,20/10/2023,Travelodge Gb0000,Housing Needs Accommodation Team,Supplies and Services Expenditure,624.18
08/12/2023,,LB of Brent,20/10/2023,Travelodge Gb0000,Housing Needs Accommodation Team,Supplies and Services Expenditure,733.32
08/12/2023,,LB of Brent,20/10/2023,Travelodge Gb0000,Housing Needs Accommodation Team,Supplies and Services Expenditure,891.16
08/12/2023,,LB of Brent,20/10/2023,Travelodge Gb0000,Housing Needs Accommodation Team,Supplies and Services Expenditure,977.07
08/12/2023,,LB of Brent,20/10/2023,The Law Society,Legal Support,Financial Services,499
08/12/2023,,LB of Brent,20/10/2023,Ukcma,Food Safety,Supplies and Services Expenditure,100
08/12/2023,,LB of Brent,20/10/2023,Prezzee/Gbf8af9275,Brent Family Solutions,Supplies and Services Expenditure,50
08/12/2023,,LB of Brent,20/10/2023,Sp Tableprotectordir,Family Hubs and Start for Life,Supplies and Services Expenditure,103.97
08/12/2023,,LB of Brent,20/10/2023,Amznmktplace,Brent Family Solutions,Supplies and Services Expenditure,134.8
08/12/2023,,LB of Brent,20/10/2023,Inflata Nation London,Brent Family Solutions,Supplies and Services Expenditure,401.63
08/12/2023,,LB of Brent,20/10/2023,Amznmktplace,SEN Assessment Service,Stationery,46.77
08/12/2023,,LB of Brent,21/10/2023,Tesco Stores 2122,Short Break Centre,Supplies and Services Expenditure,64.91
08/12/2023,,LB of Brent,21/10/2023,Tfl Oyster Auto Topup,HSG Central Serv - Housing Directorate,Supplies and Services Expenditure,19.05
08/12/2023,,LB of Brent,21/10/2023,Aldi Stores,Willows Nursery,Supplies and Services Expenditure,6.91
08/12/2023,,LB of Brent,22/10/2023,Amznmktplace,Short Break Centre,Supplies and Services Expenditure,13.42
08/12/2023,,LB of Brent,22/10/2023,Amznmktplace,Short Break Centre,Supplies and Services Expenditure,6.65
08/12/2023,,LB of Brent,22/10/2023,Amznmktplace,Short Break Centre,Supplies and Services Expenditure,4.27
08/12/2023,,LB of Brent,22/10/2023,Amznmktplace,Cemeteries Admin,Stationery,13.94
08/12/2023,,LB of Brent,22/10/2023,Amznmktplace,Cemeteries Admin,Stationery,9.25
08/12/2023,,LB of Brent,22/10/2023,Amznmktplace,IT Operations,Stationery,103.99
08/12/2023,,LB of Brent,22/10/2023,Amznmktplace,IT Operations,Stationery,169
08/12/2023,,LB of Brent,22/10/2023,Amazon* 205-9441832-60,Operational Costs - Facilities,Supplies and Services Expenditure,12.14
08/12/2023,,LB of Brent,22/10/2023,Amznmktplace,Cemeteries Admin,Stationery,19.72
08/12/2023,,LB of Brent,22/10/2023,Amznmktplace,Brent Family Solutions,Supplies and Services Expenditure,35.7
08/12/2023,,LB of Brent,22/10/2023,Amazon* 205-9441832-60,Operational Costs - Facilities,Supplies and Services Expenditure,38.45
08/12/2023,,LB of Brent,23/10/2023,Currys Online,NAIL Property Management,Supplies and Services Expenditure,365.83
08/12/2023,,LB of Brent,23/10/2023,Flextronics,Brent Sicts Consumables,Information Communication Technology,320.53
08/12/2023,,LB of Brent,23/10/2023,Www.Local.Gov.Uk,Member Development,Financial Services,594
08/12/2023,,LB of Brent,23/10/2023,Travelodge Gb0000,Housing Needs Accommodation Team,Supplies and Services Expenditure,179.49
08/12/2023,,LB of Brent,23/10/2023,Travelodge Gb0000,Housing Needs Accommodation Team,Supplies and Services Expenditure,235.58
08/12/2023,,LB of Brent,23/10/2023,Travelodge Gb0000,Housing Needs Accommodation Team,Supplies and Services Expenditure,380.42
08/12/2023,,LB of Brent,23/10/2023,Travelodge Gb0000,Housing Needs Accommodation Team,Supplies and Services Expenditure,403.88
08/12/2023,,LB of Brent,23/10/2023,Travelodge Gb0000,Housing Needs Accommodation Team,Supplies and Services Expenditure,419.18
08/12/2023,,LB of Brent,23/10/2023,Premier Inn,Housing Needs Accommodation Team,Supplies and Services Expenditure,461
08/12/2023,,LB of Brent,23/10/2023,Travelodge Gb0000,Housing Needs Accommodation Team,Supplies and Services Expenditure,477.32
08/12/2023,,LB of Brent,23/10/2023,Travelodge Gb0000,Housing Needs Accommodation Team,Supplies and Services Expenditure,532.39
08/12/2023,,LB of Brent,23/10/2023,Travelodge Gb0000,Housing Needs Accommodation Team,Supplies and Services Expenditure,605.8
08/12/2023,,LB of Brent,23/10/2023,Travelodge Gb0000,Housing Needs Accommodation Team,Supplies and Services Expenditure,701.69
08/12/2023,,LB of Brent,23/10/2023,Travelodge Gb0000,Housing Needs Accommodation Team,Supplies and Services Expenditure,701.69
08/12/2023,,LB of Brent,23/10/2023,Travelodge Gb0000,Housing Needs Accommodation Team,Supplies and Services Expenditure,761.87
08/12/2023,,LB of Brent,23/10/2023,Asda Groceries Online,Willows Nursery,Supplies and Services Expenditure,-2.25
08/12/2023,,LB of Brent,23/10/2023,Asda Groceries Online,Willows Nursery,Supplies and Services Expenditure,79.37
08/12/2023,,LB of Brent,23/10/2023,Marks&spencer Plc,Afghan Resettlement Scheme,Supplies and Services Expenditure,389.16
08/12/2023,,LB of Brent,23/10/2023,Amazon.Co.Uk,Rent Accounting Team,Stationery,-4.98
08/12/2023,,LB of Brent,23/10/2023,Facebk Daztxv7hq2,Community Engagement,Information Communication Technology,8.8
08/12/2023,,LB of Brent,24/10/2023,Entrust Gbp,Lewisham IT Shared Service,Information Communication Technology,201.87
08/12/2023,,LB of Brent,24/10/2023,Entrust Gbp,Lewisham IT Shared Service,Information Communication Technology,312.36
08/12/2023,,LB of Brent,24/10/2023,Travelodge Gb0000,Housing Needs Accommodation Team,Supplies and Services Expenditure,87.7
08/12/2023,,LB of Brent,24/10/2023,Travelodge Gb0000,Housing Needs Accommodation Team,Supplies and Services Expenditure,87.7
08/12/2023,,LB of Brent,24/10/2023,Premier Inn,Housing Needs Accommodation Team,Supplies and Services Expenditure,118.15
08/12/2023,,LB of Brent,24/10/2023,Travelodge Gb0000,Housing Needs Accommodation Team,Supplies and Services Expenditure,136.66
08/12/2023,,LB of Brent,24/10/2023,Travelodge Gb0000,Housing Needs Accommodation Team,Supplies and Services Expenditure,169.29
08/12/2023,,LB of Brent,24/10/2023,Paypal,Afghan Resettlement Scheme,Supplies and Services Expenditure,-19.99
08/12/2023,,LB of Brent,24/10/2023,Amznmktplace,Operational Costs - Facilities,Supplies and Services Expenditure,54.96
08/12/2023,,LB of Brent,24/10/2023,Font Awesome Pro,Digital Comms,Supplies and Services Expenditure,83.95
08/12/2023,,LB of Brent,24/10/2023,Hotjar,Digital Comms,Supplies and Services Expenditure,85.2
08/12/2023,,LB of Brent,24/10/2023,Prezzee/Gb0588a0c3,Brent Family Solutions,Supplies and Services Expenditure,25
08/12/2023,,LB of Brent,24/10/2023,Prezzee/Gb664c4cdd,Brent Family Solutions,Supplies and Services Expenditure,30
08/12/2023,,LB of Brent,24/10/2023,Gls Educational Su,Gordon Brown Outdoor Education Centre,Supplies and Services Expenditure,-28
08/12/2023,,LB of Brent,24/10/2023,Amznmktplace,Rent Accounting Team,Stationery,6.32
08/12/2023,,LB of Brent,25/10/2023,Tesco Stores 2122,Short Break Centre,Supplies and Services Expenditure,122.73
08/12/2023,,LB of Brent,25/10/2023,Brent Parking,Estate Cleaning Team,Supplies and Services Expenditure,20
08/12/2023,,LB of Brent,25/10/2023,Www.Screwfix.Com,NAIL Property Management,Supplies and Services Expenditure,16.92
08/12/2023,,LB of Brent,25/10/2023,Eventbrite.Com Org Fee,Campaigns and Media,Information Communication Technology,59
08/12/2023,,LB of Brent,25/10/2023,Amznmktplace,Physical Activity - Children,Stationery,15.51
08/12/2023,,LB of Brent,25/10/2023,Amznmktplace,Physical Activity - Children,Stationery,19.99
08/12/2023,,LB of Brent,25/10/2023,Www.Local.Gov.Uk,Chief Execs,Human Resources - Training and Conferences,620.4
08/12/2023,,LB of Brent,25/10/2023,Www.Local.Gov.Uk,Political Group Support,Human Resources - Training and Conferences,620.4
08/12/2023,,LB of Brent,25/10/2023,Www.Local.Gov.Uk,Political Group Support,Human Resources - Travel and Subsistence - Taxi Fares,620.4
08/12/2023,,LB of Brent,25/10/2023,Travelodge Gb0000,Housing Needs Accommodation Team,Supplies and Services Expenditure,124.42
08/12/2023,,LB of Brent,25/10/2023,Travelodge Gb0000,Housing Needs Accommodation Team,Supplies and Services Expenditure,458.94
08/12/2023,,LB of Brent,25/10/2023,Travelodge Gb0000,Housing Needs Accommodation Team,Supplies and Services Expenditure,526.25
08/12/2023,,LB of Brent,25/10/2023,Travelodge Gb0000,Housing Needs Accommodation Team,Supplies and Services Expenditure,610.92
08/12/2023,,LB of Brent,25/10/2023,Travelodge Gb0000,Housing Needs Accommodation Team,Supplies and Services Expenditure,629.28
08/12/2023,,LB of Brent,25/10/2023,Travelodge Gb0000,Housing Needs Accommodation Team,Supplies and Services Expenditure,629.28
08/12/2023,,LB of Brent,25/10/2023,Travelodge Gb0000,Housing Needs Accommodation Team,Supplies and Services Expenditure,671.05
08/12/2023,,LB of Brent,25/10/2023,Travelodge Gb0000,Housing Needs Accommodation Team,Supplies and Services Expenditure,703.71
08/12/2023,,LB of Brent,25/10/2023,Travelodge Gb0000,Housing Needs Accommodation Team,Supplies and Services Expenditure,742.71
08/12/2023,,LB of Brent,25/10/2023,Travelodge Gb0000,Housing Needs Accommodation Team,Supplies and Services Expenditure,830.17
08/12/2023,,LB of Brent,25/10/2023,Amznmktplace,Brent Music Service,Supplies and Services Expenditure,10.98
08/12/2023,,LB of Brent,25/10/2023,Amznmktplace,Brent Music Service,Supplies and Services Expenditure,12.82
08/12/2023,,LB of Brent,25/10/2023,Museums Asctn,Heritage,Supplies and Services Expenditure,120
08/12/2023,,LB of Brent,25/10/2023,Lul Ticket Machine,Brent Family Solutions,Supplies and Services Expenditure,50
08/12/2023,,LB of Brent,25/10/2023,Lul Ticket Machine,Brent Family Solutions,Supplies and Services Expenditure,50
08/12/2023,,LB of Brent,25/10/2023,Lul Ticket Machine,Brent Family Solutions,Supplies and Services Expenditure,50
08/12/2023,,LB of Brent,25/10/2023,Lul Ticket Machine,Brent Family Solutions,Supplies and Services Expenditure,50
08/12/2023,,LB of Brent,25/10/2023,Lul Ticket Machine,Brent Family Solutions,Supplies and Services Expenditure,50
08/12/2023,,LB of Brent,25/10/2023,Lul Ticket Machine,Brent Family Solutions,Supplies and Services Expenditure,50
08/12/2023,,LB of Brent,25/10/2023,Brent Council,Debt and Income,Supplies and Services Expenditure,11
08/12/2023,,LB of Brent,26/10/2023,Amznmktplace,Brent Family Solutions,Supplies and Services Expenditure,34.92
08/12/2023,,LB of Brent,26/10/2023,British Gas Online,NAIL Property Management,Supplies and Services Expenditure,82.5
08/12/2023,,LB of Brent,26/10/2023,British Gas Online,NAIL Property Management,Supplies and Services Expenditure,82.5
08/12/2023,,LB of Brent,26/10/2023,British Gas Online,NAIL Property Management,Supplies and Services Expenditure,82.5
08/12/2023,,LB of Brent,26/10/2023,Scottish Power,NAIL Property Management,Supplies and Services Expenditure,166.67
08/12/2023,,LB of Brent,26/10/2023,Scottish Power,NAIL Property Management,Supplies and Services Expenditure,166.67
08/12/2023,,LB of Brent,26/10/2023,J Pratley And Sons,Gordon Brown Outdoor Education Centre,Supplies and Services Expenditure,473.52
08/12/2023,,LB of Brent,26/10/2023,Amznmktplace,Brent Sicts,Information Communication Technology,49.99
08/12/2023,,LB of Brent,26/10/2023,Back Care Solutions,Community Hubs,Stationery,38.4
08/12/2023,,LB of Brent,26/10/2023,Back Care Solutions,Community Hubs,Stationery,298.8
08/12/2023,,LB of Brent,26/10/2023,Travelodge Gb0000,Housing Needs Accommodation Team,Supplies and Services Expenditure,97.9
08/12/2023,,LB of Brent,26/10/2023,Travelodge Gb0000,Housing Needs Accommodation Team,Supplies and Services Expenditure,375.31
08/12/2023,,LB of Brent,26/10/2023,Travelodge Gb0000,Housing Needs Accommodation Team,Supplies and Services Expenditure,384.8
08/12/2023,,LB of Brent,26/10/2023,Travelodge Gb0000,Housing Needs Accommodation Team,Supplies and Services Expenditure,481.35
08/12/2023,,LB of Brent,26/10/2023,Travelodge Gb0000,Housing Needs Accommodation Team,Supplies and Services Expenditure,481.35
08/12/2023,,LB of Brent,26/10/2023,Travelodge Gb0000,Housing Needs Accommodation Team,Supplies and Services Expenditure,490.57
08/12/2023,,LB of Brent,26/10/2023,Travelodge Gb0000,Housing Needs Accommodation Team,Supplies and Services Expenditure,573.18
08/12/2023,,LB of Brent,26/10/2023,Travelodge Gb0000,Housing Needs Accommodation Team,Supplies and Services Expenditure,637.44
08/12/2023,,LB of Brent,26/10/2023,Travelodge Gb0000,Housing Needs Accommodation Team,Supplies and Services Expenditure,715.78
08/12/2023,,LB of Brent,26/10/2023,Travelodge Gb0000,Housing Needs Accommodation Team,Supplies and Services Expenditure,750.63
08/12/2023,,LB of Brent,26/10/2023,Asda Superstore 04881,Willows Nursery,Supplies and Services Expenditure,13.47
08/12/2023,,LB of Brent,26/10/2023,Wly,Willows Nursery,Supplies and Services Expenditure,15
08/12/2023,,LB of Brent,26/10/2023,Moj Ospt Ecom,Housing Support Team,Supplies and Services Expenditure,40
08/12/2023,,LB of Brent,26/10/2023,Moj Ospt Ecom,Housing Support Team,Supplies and Services Expenditure,40
08/12/2023,,LB of Brent,26/10/2023,Moj Ospt Ecom,Housing Support Team,Supplies and Services Expenditure,40
08/12/2023,,LB of Brent,26/10/2023,Amznmktplace,Brent Music Service,Supplies and Services Expenditure,20.85
08/12/2023,,LB of Brent,26/10/2023,Www.Argos.Co.Uk,Afghan Resettlement Scheme,Supplies and Services Expenditure,111.62
08/12/2023,,LB of Brent,26/10/2023,Dunelm Softfurnishings,Afghan Resettlement Scheme,Supplies and Services Expenditure,137.5
08/12/2023,,LB of Brent,26/10/2023,Harlesden Carpet Floori,Afghan Resettlement Scheme,Supplies and Services Expenditure,1041.67
08/12/2023,,LB of Brent,26/10/2023,Amznmktplace,Social Services Directorate,Stationery,9.16
08/12/2023,,LB of Brent,26/10/2023,Gls Educational Su,Gordon Brown Outdoor Education Centre,Supplies and Services Expenditure,-201.36
08/12/2023,,LB of Brent,26/10/2023,Brent Council,Parish Liaison,Financial Services,11
08/12/2023,,LB of Brent,26/10/2023,Sportsdirect.Com,Afghan Resettlement Scheme,Supplies and Services Expenditure,302.49
08/12/2023,,LB of Brent,27/10/2023,Screwfix Dir Ltd,NAIL Property Management,Supplies and Services Expenditure,-16.92
08/12/2023,,LB of Brent,27/10/2023,Smugmug.Com,The Brent Magazine - Level 4,Information Communication Technology,112.61
08/12/2023,,LB of Brent,27/10/2023,Veed.Io Basic,Transformation Team,Financial Services,18
08/12/2023,,LB of Brent,27/10/2023,Travelodge Gb0000,Housing Needs Accommodation Team,Supplies and Services Expenditure,272.46
08/12/2023,,LB of Brent,27/10/2023,Premier Inn,Housing Needs Accommodation Team,Supplies and Services Expenditure,276
08/12/2023,,LB of Brent,27/10/2023,Travelodge Gb0000,Housing Needs Accommodation Team,Supplies and Services Expenditure,464.05
08/12/2023,,LB of Brent,27/10/2023,Amazon.Co.Uk,Willows Nursery,Supplies and Services Expenditure,11.88
08/12/2023,,LB of Brent,27/10/2023,Amznmktplace,Brent Music Service,Supplies and Services Expenditure,17.52
08/12/2023,,LB of Brent,27/10/2023,Trainline,ICP Transformation Team,Supplies and Services Expenditure,184.85
08/12/2023,,LB of Brent,27/10/2023,Amznmktplace,Alternative Education - Day 6 Exclusion,Stationery,-21.49
08/12/2023,,LB of Brent,28/10/2023,Tesco Stores 2122,Short Break Centre,Supplies and Services Expenditure,109.99
08/12/2023,,LB of Brent,28/10/2023,Www.Screwfix.Com,Gordon Brown Outdoor Education Centre,Supplies and Services Expenditure,77.33
08/12/2023,,LB of Brent,28/10/2023,Asda Groceries Online,Willows Nursery,Supplies and Services Expenditure,6.5
08/12/2023,,LB of Brent,28/10/2023,Fc* Freepik Premium Ye,The Brent Magazine - Level 4,Financial Services,116.44
08/12/2023,,LB of Brent,29/10/2023,Amznmktplace,Brent Music Service,Supplies and Services Expenditure,13.95
08/12/2023,,LB of Brent,29/10/2023,Amznmktplace,Brent Music Service,Supplies and Services Expenditure,34.5
08/12/2023,,LB of Brent,30/10/2023,Shell Kilburn,Estate Cleaning Team,Supplies and Services Expenditure,9.31
08/12/2023,,LB of Brent,30/10/2023,Sam Pounds Stores,NAIL Property Management,Supplies and Services Expenditure,4.17
08/12/2023,,LB of Brent,30/10/2023,Zaks Shoe Service,TA Property Management,Supplies and Services Expenditure,17
08/12/2023,,LB of Brent,30/10/2023,Entrust Gbp,Lewisham IT Shared Service,Information Communication Technology,-201.87
08/12/2023,,LB of Brent,30/10/2023,Entrust Gbp,Lewisham IT Shared Service,Information Communication Technology,-312.36
08/12/2023,,LB of Brent,30/10/2023,Surveymonkeycore,Southwark Sicts Consumables,Information Communication Technology,1260
08/12/2023,,LB of Brent,30/10/2023,Travelodge Gb0000,Housing Needs Accommodation Team,Supplies and Services Expenditure,117.28
08/12/2023,,LB of Brent,30/10/2023,Travelodge Gb0000,Housing Needs Accommodation Team,Supplies and Services Expenditure,121.36
08/12/2023,,LB of Brent,30/10/2023,Travelodge Gb0000,Housing Needs Accommodation Team,Supplies and Services Expenditure,357.98
08/12/2023,,LB of Brent,30/10/2023,Premier Inn,Housing Needs Accommodation Team,Supplies and Services Expenditure,366
08/12/2023,,LB of Brent,30/10/2023,Travelodge Gb0000,Housing Needs Accommodation Team,Supplies and Services Expenditure,399.8
08/12/2023,,LB of Brent,30/10/2023,Travelodge Gb0000,Housing Needs Accommodation Team,Supplies and Services Expenditure,437.54
08/12/2023,,LB of Brent,30/10/2023,Travelodge Gb0000,Housing Needs Accommodation Team,Supplies and Services Expenditure,439.58
08/12/2023,,LB of Brent,30/10/2023,Travelodge Gb0000,Housing Needs Accommodation Team,Supplies and Services Expenditure,439.58
08/12/2023,,LB of Brent,30/10/2023,Travelodge Gb0000,Housing Needs Accommodation Team,Supplies and Services Expenditure,444.65
08/12/2023,,LB of Brent,30/10/2023,Travelodge Gb0000,Housing Needs Accommodation Team,Supplies and Services Expenditure,501.77
08/12/2023,,LB of Brent,30/10/2023,Travelodge Gb0000,Housing Needs Accommodation Team,Supplies and Services Expenditure,534.43
08/12/2023,,LB of Brent,30/10/2023,Travelodge Gb0000,Housing Needs Accommodation Team,Supplies and Services Expenditure,567.05
08/12/2023,,LB of Brent,30/10/2023,Travelodge Gb0000,Housing Needs Accommodation Team,Supplies and Services Expenditure,689.45
08/12/2023,,LB of Brent,30/10/2023,Travelodge Gb0000,Housing Needs Accommodation Team,Supplies and Services Expenditure,697.61
08/12/2023,,LB of Brent,30/10/2023,Costco Wholesale #128,Social Services Directorate,Catering,10.77
08/12/2023,,LB of Brent,30/10/2023,Sainsburys Wembley,Social Services Directorate,Catering,27.5
08/12/2023,,LB of Brent,30/10/2023,Costco Wholesale #128,Social Services Directorate,Catering,183.73
08/12/2023,,LB of Brent,30/10/2023,Asda Groceries Online,Willows Nursery,Supplies and Services Expenditure,-2.67
08/12/2023,,LB of Brent,30/10/2023,Asda Groceries Online,Willows Nursery,Supplies and Services Expenditure,67.08
08/12/2023,,LB of Brent,30/10/2023,L B Camden Int,Housing Support Team,Supplies and Services Expenditure,46
08/12/2023,,LB of Brent,30/10/2023,Dvla Vehicle Tax,Brent Music Service,Supplies and Services Expenditure,320
08/12/2023,,LB of Brent,30/10/2023,Amznmktplace,Kinship Team,Stationery,4.49
08/12/2023,,LB of Brent,30/10/2023,Amznmktplace,Cemeteries Admin,Stationery,6.62
08/12/2023,,LB of Brent,30/10/2023,Find A Will,Legal Support,Legal Services,1.5
08/12/2023,,LB of Brent,30/10/2023,Argos Wembley West Olympi,Early Years Central Services,Supplies and Services Expenditure,25
08/12/2023,,LB of Brent,30/10/2023,Www.Papajohn S.Co.Uk,Brent Family Solutions,Supplies and Services Expenditure,129.73
08/12/2023,,LB of Brent,30/10/2023,Tfl Roadchg Stdautopay,Building Cleaning,Supplies and Services Expenditure,916.67
08/12/2023,,LB of Brent,30/10/2023,Iceland Foods,Residential and Nursing Team,Supplies and Services Expenditure,51.79
08/12/2023,,LB of Brent,30/10/2023,Paypal,Bridge Park Facilities,Supplies and Services Expenditure,40
08/12/2023,,LB of Brent,30/10/2023,Paypal,Afghan Resettlement Scheme,Supplies and Services Expenditure,108.33
08/12/2023,,LB of Brent,30/10/2023,Paypal,Afghan Resettlement Scheme,Supplies and Services Expenditure,553.29
08/12/2023,,LB of Brent,31/10/2023,Amznmktplace,Social Services Directorate,Human Resources - Travel and Subsistence - Taxi Fares,69.99
08/12/2023,,LB of Brent,31/10/2023,Amznmktplace,Cemeteries Admin,Stationery,20.82
08/12/2023,,LB of Brent,31/10/2023,Brent Parking,Estate Cleaning Team,Supplies and Services Expenditure,9
08/12/2023,,LB of Brent,31/10/2023,Wickes Hanger Lane,Bridge Park Facilities,Supplies and Services Expenditure,35
08/12/2023,,LB of Brent,31/10/2023,Amznmktplace,Bridge Park Facilities,Supplies and Services Expenditure,42.47
08/12/2023,,LB of Brent,31/10/2023,Amazon.Co.Uk,Brent Sicts,Information Communication Technology,-60.82
08/12/2023,,LB of Brent,31/10/2023,Entrust Gbp,Lewisham IT Shared Service,Information Communication Technology,339.58
08/12/2023,,LB of Brent,31/10/2023,Sp Thedyslexiashop,Community Hubs,Stationery,27.97
08/12/2023,,LB of Brent,31/10/2023,Iceland Foods,Residential and Nursing Team,Supplies and Services Expenditure,-2.56
08/12/2023,,LB of Brent,31/10/2023,Travelodge Gb0000,Housing Needs Accommodation Team,Supplies and Services Expenditure,103
08/12/2023,,LB of Brent,31/10/2023,Travelodge Gb0000,Housing Needs Accommodation Team,Supplies and Services Expenditure,150.93
08/12/2023,,LB of Brent,31/10/2023,Travelodge Gb0000,Housing Needs Accommodation Team,Supplies and Services Expenditure,301.88
08/12/2023,,LB of Brent,31/10/2023,Travelodge Gb0000,Housing Needs Accommodation Team,Supplies and Services Expenditure,542.57
08/12/2023,,LB of Brent,31/10/2023,Travelodge Gb0000,Housing Needs Accommodation Team,Supplies and Services Expenditure,603.77
08/12/2023,,LB of Brent,31/10/2023,Travelodge Gb0000,Housing Needs Accommodation Team,Supplies and Services Expenditure,762.89
08/12/2023,,LB of Brent,31/10/2023,Amazon.Co.Uk,Brent Music Service,Supplies and Services Expenditure,13.49
08/12/2023,,LB of Brent,31/10/2023,B&q Marketplace,Afghan Resettlement Scheme,Supplies and Services Expenditure,25.49
08/12/2023,,LB of Brent,31/10/2023,Www.Argos.Co.Uk,Afghan Resettlement Scheme,Supplies and Services Expenditure,294.96
08/12/2023,,LB of Brent,31/10/2023,Property Elite,Operational Costs - Property,Supplies and Services Expenditure,150
08/12/2023,,LB of Brent,31/10/2023,Amznmktplace,Civic Centre Conference and Events,Stationery,29.99
08/12/2023,,LB of Brent,31/10/2023,Amznmktplace,Civic Centre Conference and Events,Stationery,18.29
08/12/2023,,LB of Brent,31/10/2023,Trainline,Housing Needs Housing Options Team,Supplies and Services Expenditure,26.78
08/12/2023,,LB of Brent,31/10/2023,J Emerson,Brent Music Service,Supplies and Services Expenditure,25.95
08/12/2023,,LB of Brent,01/11/2023,Amazon.Co.Uk,Political Group Support,Stationery,27.98
08/12/2023,,LB of Brent,01/11/2023,Amznmktplace,Brent Family Solutions,Supplies and Services Expenditure,134.39
08/12/2023,,LB of Brent,01/11/2023,Tesco Stores 2122,Short Break Centre,Supplies and Services Expenditure,72
08/12/2023,,LB of Brent,01/11/2023,Amazon* 205-9745144-64,Customer Access Improvement and Performance,Stationery,27.5
08/12/2023,,LB of Brent,01/11/2023,Sainsburys Wembley,Policy Partnerships & Scrutiny,Stationery,45
08/12/2023,,LB of Brent,01/11/2023,Amznmktplace,Community Hubs,Stationery,304.38
08/12/2023,,LB of Brent,01/11/2023,Travelodge Gb0000,Housing Needs Accommodation Team,Supplies and Services Expenditure,519.13
08/12/2023,,LB of Brent,01/11/2023,Www.Local.Gov.Uk,Social Services Directorate,Information Communication Technology,168
08/12/2023,,LB of Brent,01/11/2023,Earlyexcellence.Com,Willows Nursery,Supplies and Services Expenditure,40.94
08/12/2023,,LB of Brent,01/11/2023,Moj Ospt Ecom,Housing Support Team,Supplies and Services Expenditure,40
08/12/2023,,LB of Brent,01/11/2023,Google*gsuite Bmsstaff,Brent Music Service,Supplies and Services Expenditure,92
08/12/2023,,LB of Brent,01/11/2023,Flickr Pro Monthly,Digital Comms,Supplies and Services Expenditure,6.99
08/12/2023,,LB of Brent,01/11/2023,Lul Ticket Machine,Brent Family Solutions,Supplies and Services Expenditure,50
08/12/2023,,LB of Brent,01/11/2023,British Gas Online,TA Property Management,Supplies and Services Expenditure,94.29
08/12/2023,,LB of Brent,01/11/2023,Scottish Power,NAIL Property Management,Supplies and Services Expenditure,83.33
08/12/2023,,LB of Brent,01/11/2023,Scottish Power,NAIL Property Management,Supplies and Services Expenditure,83.33
08/12/2023,,LB of Brent,01/11/2023,Scottish Power,NAIL Property Management,Supplies and Services Expenditure,166.67
08/12/2023,,LB of Brent,01/11/2023,Scottish Power,NAIL Property Management,Supplies and Services Expenditure,166.67
08/12/2023,,LB of Brent,01/11/2023,Brent Council,Housing Support Team,Supplies and Services Expenditure,35
08/12/2023,,LB of Brent,01/11/2023,Amazon* 204-7640428-19,Brent Family Solutions,Supplies and Services Expenditure,179
08/12/2023,,LB of Brent,02/11/2023,Currys Online,Short Break Centre,Supplies and Services Expenditure,144.99
08/12/2023,,LB of Brent,02/11/2023,Argos Ltd,Estate Cleaning Team,Supplies and Services Expenditure,-2
08/12/2023,,LB of Brent,02/11/2023,Argos Ltd,Estate Cleaning Team,Supplies and Services Expenditure,60.96
08/12/2023,,LB of Brent,02/11/2023,Msft *,Brent Sicts,Supplies and Services Expenditure,4.5
08/12/2023,,LB of Brent,02/11/2023,Entrust Gbp,Lewisham Sicts Consumables,Information Communication Technology,265.72
08/12/2023,,LB of Brent,02/11/2023,Flextronics,Brent Sicts Consumables,Information Communication Technology,278.22
08/12/2023,,LB of Brent,02/11/2023,Amznmktplace,Cemeteries Admin,Stationery,59.96
08/12/2023,,LB of Brent,02/11/2023,Travelodge Gb0000,Housing Needs Accommodation Team,Supplies and Services Expenditure,379.39
08/12/2023,,LB of Brent,02/11/2023,Travelodge Gb0000,Housing Needs Accommodation Team,Supplies and Services Expenditure,393.64
08/12/2023,,LB of Brent,02/11/2023,Travelodge Gb0000,Housing Needs Accommodation Team,Supplies and Services Expenditure,405.91
08/12/2023,,LB of Brent,02/11/2023,Premier Inn,Housing Needs Accommodation Team,Supplies and Services Expenditure,412
08/12/2023,,LB of Brent,02/11/2023,Travelodge Gb0000,Housing Needs Accommodation Team,Supplies and Services Expenditure,455.89
08/12/2023,,LB of Brent,02/11/2023,Travelodge Gb0000,Housing Needs Accommodation Team,Supplies and Services Expenditure,467.07
08/12/2023,,LB of Brent,02/11/2023,Travelodge Gb0000,Housing Needs Accommodation Team,Supplies and Services Expenditure,626.19
08/12/2023,,LB of Brent,02/11/2023,Travelodge Gb0000,Housing Needs Accommodation Team,Supplies and Services Expenditure,676.17
08/12/2023,,LB of Brent,02/11/2023,Travelodge Gb0000,Housing Needs Accommodation Team,Supplies and Services Expenditure,828.15
08/12/2023,,LB of Brent,02/11/2023,Travelodge Gb0000,Housing Needs Accommodation Team,Supplies and Services Expenditure,846.51
08/12/2023,,LB of Brent,02/11/2023,Travelodge Gb0000,Housing Needs Accommodation Team,Supplies and Services Expenditure,897.51
08/12/2023,,LB of Brent,02/11/2023,Travelodge Gb0000,Housing Needs Accommodation Team,Supplies and Services Expenditure,999.47
08/12/2023,,LB of Brent,02/11/2023,Amazon Prime,Willows Nursery,Supplies and Services Expenditure,7.49
08/12/2023,,LB of Brent,02/11/2023,Lidl Gb London,Willows Nursery,Supplies and Services Expenditure,20.09
08/12/2023,,LB of Brent,03/11/2023,Amznmktplace,Civic Centre - Av,Stationery,59.99
08/12/2023,,LB of Brent,03/11/2023,Amznmktplace,Civic Centre - Av,Stationery,87.38
08/12/2023,,LB of Brent,03/11/2023,Tesco Subscription,Short Break Centre,Supplies and Services Expenditure,47.94
08/12/2023,,LB of Brent,03/11/2023,Dvla Vehicle Tax,Short Break Centre,Supplies and Services Expenditure,165
08/12/2023,,LB of Brent,03/11/2023,Shell Willesden,Estate Cleaning Team,Supplies and Services Expenditure,63.95
08/12/2023,,LB of Brent,03/11/2023,British Gas Online,NAIL Property Management,Supplies and Services Expenditure,82.5
08/12/2023,,LB of Brent,03/11/2023,British Gas Online,NAIL Property Management,Supplies and Services Expenditure,82.5
08/12/2023,,LB of Brent,03/11/2023,British Gas Online,NAIL Property Management,Supplies and Services Expenditure,82.5
08/12/2023,,LB of Brent,03/11/2023,British Gas Online,NAIL Property Management,Supplies and Services Expenditure,82.5
08/12/2023,,LB of Brent,03/11/2023,Lidl Gb London,Smart Team,Supplies and Services Expenditure,40.18
08/12/2023,,LB of Brent,03/11/2023,Entrust Gbp,Lewisham IT Shared Service,Supplies and Services Expenditure,365.38
08/12/2023,,LB of Brent,03/11/2023,Amznmktplace,Civic Centre - Av,Stationery,56.99
08/12/2023,,LB of Brent,03/11/2023,Travelodge Gb0000,Housing Needs Accommodation Team,Supplies and Services Expenditure,190.71
08/12/2023,,LB of Brent,03/11/2023,Travelodge Gb0000,Housing Needs Accommodation Team,Supplies and Services Expenditure,355.94
08/12/2023,,LB of Brent,03/11/2023,Travelodge Gb0000,Housing Needs Accommodation Team,Supplies and Services Expenditure,650.69
08/12/2023,,LB of Brent,03/11/2023,Premier Inn,Housing Needs Accommodation Team,Supplies and Services Expenditure,667
08/12/2023,,LB of Brent,03/11/2023,Homebase Ltd 093,Willows Nursery,Supplies and Services Expenditure,34
08/12/2023,,LB of Brent,03/11/2023,Companieshouse Web Filing,Legal Support,Legal Services,15
08/12/2023,,LB of Brent,03/11/2023,Trainline,Housing Needs Housing Options Team,Supplies and Services Expenditure,77.89
08/12/2023,,LB of Brent,03/11/2023,Brent Council,Parish Liaison,Financial Services,11
08/12/2023,,LB of Brent,04/11/2023,Tesco Stores 2122,Short Break Centre,Supplies and Services Expenditure,129.86
08/12/2023,,LB of Brent,04/11/2023,Amznmktplace,Civic Centre Conference and Events,Stationery,10
08/12/2023,,LB of Brent,04/11/2023,Premier Inn,Housing Needs Accommodation Team,Supplies and Services Expenditure,600
08/12/2023,,LB of Brent,04/11/2023,Amznmktplace,Wembley Learning Zone,Supplies and Services Expenditure,327.55
08/12/2023,,LB of Brent,04/11/2023,Disney Plus,Brent Family Solutions,Supplies and Services Expenditure,79.9
08/12/2023,,LB of Brent,06/11/2023,British Gas Otp,NAIL Property Management,Supplies and Services Expenditure,82.5
08/12/2023,,LB of Brent,06/11/2023,British Gas Otp,NAIL Property Management,Supplies and Services Expenditure,82.5
08/12/2023,,LB of Brent,06/11/2023,Trainline,Smart Team,Supplies and Services Expenditure,18.29
08/12/2023,,LB of Brent,06/11/2023,Moj Ospt Ecom,Housing Support Team,Supplies and Services Expenditure,40
08/12/2023,,LB of Brent,06/11/2023,Www.Vectorworks.Net,Brent Sicts Consumables,Supplies and Services Expenditure,135
08/12/2023,,LB of Brent,06/11/2023,Travelodge Gb0000,Housing Needs Accommodation Team,Supplies and Services Expenditure,386.54
08/12/2023,,LB of Brent,06/11/2023,Travelodge Gb0000,Housing Needs Accommodation Team,Supplies and Services Expenditure,386.54
08/12/2023,,LB of Brent,06/11/2023,Travelodge Gb0000,Housing Needs Accommodation Team,Supplies and Services Expenditure,387.56
08/12/2023,,LB of Brent,06/11/2023,Premier Inn,Housing Needs Accommodation Team,Supplies and Services Expenditure,388
08/12/2023,,LB of Brent,06/11/2023,Travelodge Gb0000,Housing Needs Accommodation Team,Supplies and Services Expenditure,660.89
08/12/2023,,LB of Brent,06/11/2023,Travelodge Gb0000,Housing Needs Accommodation Team,Supplies and Services Expenditure,660.89
08/12/2023,,LB of Brent,06/11/2023,Travelodge Gb0000,Housing Needs Accommodation Team,Supplies and Services Expenditure,709.85
08/12/2023,,LB of Brent,06/11/2023,Travelodge Gb0000,Housing Needs Accommodation Team,Supplies and Services Expenditure,709.85
08/12/2023,,LB of Brent,06/11/2023,Travelodge Gb0000,Housing Needs Accommodation Team,Supplies and Services Expenditure,709.85
08/12/2023,,LB of Brent,06/11/2023,Travelodge Gb0000,Housing Needs Accommodation Team,Supplies and Services Expenditure,815.93
08/12/2023,,LB of Brent,06/11/2023,Travelodge Gb0000,Housing Needs Accommodation Team,Supplies and Services Expenditure,815.93
08/12/2023,,LB of Brent,06/11/2023,Amznmktplace,Social Services Directorate,Information Communication Technology,9.9
08/12/2023,,LB of Brent,06/11/2023,Asda Groceries Online,Willows Nursery,Supplies and Services Expenditure,-7.56
08/12/2023,,LB of Brent,06/11/2023,Asda Groceries Online,Willows Nursery,Supplies and Services Expenditure,73.18
08/12/2023,,LB of Brent,06/11/2023,C2e871100495b Ukvi,Looked After Children Team E,Supplies and Services Expenditure,3239
08/12/2023,,LB of Brent,06/11/2023,Lul Ticket Machine,Brent Family Solutions,Supplies and Services Expenditure,50
08/12/2023,,LB of Brent,06/11/2023,Amznbusiness,Gordon Brown Outdoor Education Centre,Supplies and Services Expenditure,36.19
08/12/2023,,LB of Brent,06/11/2023,Tesco Stores 2080,Gordon Brown Outdoor Education Centre,Supplies and Services Expenditure,185.4
08/12/2023,,LB of Brent,06/11/2023,Bkg*hotel At Booking.C,Housing Needs Housing Options Team,Supplies and Services Expenditure,64
08/12/2023,,LB of Brent,06/11/2023,British Gas Otp,NAIL Property Management,Supplies and Services Expenditure,82.5
08/12/2023,,LB of Brent,06/11/2023,Scottish Power,NAIL Property Management,Supplies and Services Expenditure,83.33
08/12/2023,,LB of Brent,06/11/2023,Scottish Power,NAIL Property Management,Supplies and Services Expenditure,166.67
08/12/2023,,LB of Brent,06/11/2023,Scottish Power,NAIL Property Management,Supplies and Services Expenditure,166.67
08/12/2023,,LB of Brent,07/11/2023,Notemachine,Reablement - Hdt Operational,Supplies and Services Expenditure,100
08/12/2023,,LB of Brent,07/11/2023,Www.Essentialaids.Com,Short Break Centre,Supplies and Services Expenditure,31.99
08/12/2023,,LB of Brent,07/11/2023,Brent Parking,Estate Cleaning Team,Supplies and Services Expenditure,2
08/12/2023,,LB of Brent,07/11/2023,Moj Ospt Ecom,Housing Support Team,Supplies and Services Expenditure,40
08/12/2023,,LB of Brent,07/11/2023,Moj Ospt Ecom,Housing Support Team,Supplies and Services Expenditure,40
08/12/2023,,LB of Brent,07/11/2023,Moj Ospt Ecom,Housing Support Team,Supplies and Services Expenditure,40
08/12/2023,,LB of Brent,07/11/2023,Amazon Prime,Brent Sicts,Supplies and Services Expenditure,7.49
08/12/2023,,LB of Brent,07/11/2023,Amazon.Co.Uk,Management (Customer Services),Stationery,9.18
08/12/2023,,LB of Brent,07/11/2023,Calendly,Member Development,Financial Services,50.08
08/12/2023,,LB of Brent,07/11/2023,Wf *uk3976944684,IT Operations,Stationery,128.31
08/12/2023,,LB of Brent,07/11/2023,Travelodge Gb0000,Housing Needs Accommodation Team,Supplies and Services Expenditure,499.72
08/12/2023,,LB of Brent,07/11/2023,Travelodge Gb0000,Housing Needs Accommodation Team,Supplies and Services Expenditure,544.61
08/12/2023,,LB of Brent,07/11/2023,Amznmktplace,Civic Centre - Av,Stationery,12.48
08/12/2023,,LB of Brent,07/11/2023,Find A Will,Legal Support,Legal Services,1.5
08/12/2023,,LB of Brent,07/11/2023,Find A Will,Legal Support,Legal Services,1.5
08/12/2023,,LB of Brent,07/11/2023,Brent Council,Housing Support Team,Supplies and Services Expenditure,11
08/12/2023,,LB of Brent,08/11/2023,Miscellaneous Fee - Cash Handling Fee @ 2.95%,Reablement - Hdt Operational,Supplies and Services Expenditure,2.95
08/12/2023,,LB of Brent,08/11/2023,1password,Brent Sicts,Supplies and Services Expenditure,33.89
08/12/2023,,LB of Brent,08/11/2023,Mgp*evcharge Source,Estate Cleaning Team,Supplies and Services Expenditure,23.74
08/12/2023,,LB of Brent,08/11/2023,British Gas Online,NAIL Property Management,Supplies and Services Expenditure,82.5
08/12/2023,,LB of Brent,08/11/2023,British Gas Online,NAIL Property Management,Supplies and Services Expenditure,82.5
08/12/2023,,LB of Brent,08/11/2023,John Lyon Flowers,Member Services,Supplies and Services Expenditure,40
08/12/2023,,LB of Brent,08/11/2023,Amznmktplace,Customer Access Improvement and Performance,Stationery,9.34
08/12/2023,,LB of Brent,08/11/2023,Amazon Prime,Childrens Social Care Business Support,Supplies and Services Expenditure,7.49
08/12/2023,,LB of Brent,08/11/2023,Brent Council,Parish Liaison,Supplies and Services Expenditure,11
08/12/2023,,LB of Brent,08/11/2023,Premier Inn,Corporate Communications Unit,Supplies and Services Expenditure,19.98
08/12/2023,,LB of Brent,08/11/2023,Premier Inn,Corporate Communications Unit,Supplies and Services Expenditure,19.98
08/12/2023,,LB of Brent,08/11/2023,Premier Inn,Corporate Communications Unit,Supplies and Services Expenditure,19.98
08/12/2023,,LB of Brent,08/11/2023,Premier Inn,Corporate Communications Unit,Supplies and Services Expenditure,19.98
08/12/2023,,LB of Brent,09/11/2023,Tesco Stores 2122,Short Break Centre,Supplies and Services Expenditure,118.61
08/12/2023,,LB of Brent,09/11/2023,Ikea Ltd 461 Reading Main,Gordon Brown Outdoor Education Centre,Supplies and Services Expenditure,2060
08/12/2023,,LB of Brent,09/11/2023,Go Outdoors,Gordon Brown Outdoor Education Centre,Supplies and Services Expenditure,2754
08/12/2023,,LB of Brent,09/11/2023,Moj Ospt Ecom,Housing Support Team,Supplies and Services Expenditure,40
08/12/2023,,LB of Brent,09/11/2023,Moj Ospt Ecom,Housing Support Team,Supplies and Services Expenditure,40
08/12/2023,,LB of Brent,09/11/2023,Amazon.Co.Uk,Lewisham IT Shared Service,Supplies and Services Expenditure,29.96
08/12/2023,,LB of Brent,09/11/2023,Premier Inn,Housing Needs Accommodation Team,Supplies and Services Expenditure,67
08/12/2023,,LB of Brent,09/11/2023,Travelodge Gb0000,Housing Needs Accommodation Team,Supplies and Services Expenditure,107.7
08/12/2023,,LB of Brent,09/11/2023,Travelodge Gb0000,Housing Needs Accommodation Team,Supplies and Services Expenditure,191.73
08/12/2023,,LB of Brent,09/11/2023,Premier Inn,Housing Needs Accommodation Team,Supplies and Services Expenditure,368
08/12/2023,,LB of Brent,09/11/2023,Travelodge Gb0000,Housing Needs Accommodation Team,Supplies and Services Expenditure,486.49
08/12/2023,,LB of Brent,09/11/2023,Travelodge Gb0000,Housing Needs Accommodation Team,Supplies and Services Expenditure,803.67
08/12/2023,,LB of Brent,09/11/2023,Travelodge Gb0000,Housing Needs Accommodation Team,Supplies and Services Expenditure,854.67
08/12/2023,,LB of Brent,09/11/2023,Travelodge Gb0000,Housing Needs Accommodation Team,Supplies and Services Expenditure,854.67
08/12/2023,,LB of Brent,09/11/2023,Travelodge Gb0000,Housing Needs Accommodation Team,Supplies and Services Expenditure,875.07
08/12/2023,,LB of Brent,09/11/2023,Travelodge Gb0000,Housing Needs Accommodation Team,Supplies and Services Expenditure,885.27
08/12/2023,,LB of Brent,09/11/2023,Travelodge Gb0000,Housing Needs Accommodation Team,Supplies and Services Expenditure,975.03
08/12/2023,,LB of Brent,09/11/2023,Www.Hcegroup.Co.Uk,Housing Needs Accommodation Team,Supplies and Services Expenditure,7917.96
08/12/2023,,LB of Brent,09/11/2023,Sainsburys S/Mkts,Audit and Investigations,Supplies and Services Expenditure,40.3
08/12/2023,,LB of Brent,09/11/2023,Hmcts Westlondon073,Debt and Income,Supplies and Services Expenditure,582
08/12/2023,,LB of Brent,09/11/2023,Amznmktplace,Legal Support,Stationery,19.15
08/12/2023,,LB of Brent,09/11/2023,Amazon Prime,Registration and Nationality Service,Supplies and Services Expenditure,-7.49
08/12/2023,,LB of Brent,09/11/2023,Find A Will,Legal Support,Legal Services,1.5
08/12/2023,,LB of Brent,09/11/2023,Find A Will,Legal Support,Legal Services,1.5
08/12/2023,,LB of Brent,09/11/2023,Asda Superstore 04881,Brent Family Solutions,Supplies and Services Expenditure,40
08/12/2023,,LB of Brent,09/11/2023,Tesco Gift Card,Brent Family Solutions,Supplies and Services Expenditure,50
08/12/2023,,LB of Brent,09/11/2023,Prezzee/Gb6d27a1e1,Brent Family Solutions,Supplies and Services Expenditure,50
08/12/2023,,LB of Brent,09/11/2023,Asda Superstore 04881,Brent Family Solutions,Supplies and Services Expenditure,100
08/12/2023,,LB of Brent,09/11/2023,Asda Superstore 04881,Brent Family Solutions,Supplies and Services Expenditure,100
08/12/2023,,LB of Brent,09/11/2023,Gb Total Equestrian Limit,Gordon Brown Outdoor Education Centre,Supplies and Services Expenditure,89.25
08/12/2023,,LB of Brent,09/11/2023,Uber *trip,Housing Partnerships Service,Supplies and Services Expenditure,7.9
08/12/2023,,LB of Brent,10/11/2023,Wilmington Health,Public Health Operational,Financial Services,249
08/12/2023,,LB of Brent,10/11/2023,Asda Superstore 04881,Member Services,Catering,40.04
08/12/2023,,LB of Brent,10/11/2023,Paypal,Climate Emergency Budget,Financial Services,247.64
08/12/2023,,LB of Brent,10/11/2023,Amznmktplace,Legal Support,Stationery,37.46
08/12/2023,,LB of Brent,11/11/2023,1password,Brent Sicts,Information Communication Technology,33.76
08/12/2023,,LB of Brent,13/11/2023,Namesco,Brent Sicts,Information Communication Technology,4.99
08/12/2023,,LB of Brent,13/11/2023,Amznmktplace,Customer Access Improvement and Performance,Stationery,3.98
08/12/2023,,LB of Brent,13/11/2023,Amznmktplace,ES and E - Business Grants,Stationery,3.98
08/12/2023,,LB of Brent,13/11/2023,Amznmktplace,ES and E - Business Grants,Stationery,7.62
08/12/2023,,LB of Brent,13/11/2023,Amznmktplace,ES and E - Business Grants,Stationery,12.99
08/12/2023,,LB of Brent,13/11/2023,Amznmktplace,Customer Access Improvement and Performance,Stationery,114.99
08/12/2023,,LB of Brent,13/11/2023,Amznmktplace,Transformation Team,Stationery,6.25
08/12/2023,,LB of Brent,14/11/2023,Amznmktplace,Customer Access Improvement and Performance,Stationery,89.98
08/12/2023,,LB of Brent,14/11/2023,Amznmktplace,Customer Access Improvement and Performance,Stationery,18.99
08/12/2023,,LB of Brent,14/11/2023,Amznmktplace,Housing Support Team,Stationery,18.99
08/12/2023,,LB of Brent,14/11/2023,Amznmktplace,Housing Support Team,Stationery,114.99
08/12/2023,,LB of Brent,14/11/2023,Amznmktplace,Transformation Team,Stationery,6.64
08/12/2023,,LB of Brent,14/11/2023,Amznmktplace,Transformation Team,Stationery,3.82
08/12/2023,,LB of Brent,14/11/2023,Companieshouse Web Filing,Legal Support,Legal Services,15
08/12/2023,,LB of Brent,15/11/2023,Sainsburys S/Mkts,Mayors Prev Yrs,Catering,7.5
08/12/2023,,LB of Brent,15/11/2023,Amznmktplace,Brent Sicts Consumables,Information Communication Technology,33.29
08/12/2023,,LB of Brent,15/11/2023,Amznmktplace,Warm Spaces Grants,Stationery,40.68
08/12/2023,,LB of Brent,15/11/2023,Amznmktplace,Warm Spaces Grants,Stationery,15.99
08/12/2023,,LB of Brent,15/11/2023,Amznmktplace,Warm Spaces Grants,Stationery,5.24
08/12/2023,,LB of Brent,15/11/2023,Amznmktplace,Warm Spaces Grants,Stationery,19.99
08/12/2023,,LB of Brent,15/11/2023,Amazon.Co.Uk,Customer Service,Stationery,66.98
08/12/2023,,LB of Brent,16/11/2023,Amznmktplace,Warm Spaces Grants,Stationery,59.95
08/12/2023,,LB of Brent,16/11/2023,Furniture@work Ltd,Ealing Road Library,Stationery,1460
08/12/2023,,LB of Brent,16/11/2023,Lyreco UK Limited,Customer Access Improvement and Performance,Stationery,1122.9
08/12/2023,,LB of Brent,16/11/2023,Brent Council,Parish Liaison,Financial Services,11
08/12/2023,,LB of Brent,16/11/2023,Brent Council,Parish Liaison,Financial Services,11
08/12/2023,,LB of Brent,16/11/2023,Brent Council,Parish Liaison,Financial Services,11
08/12/2023,,LB of Brent,16/11/2023,Brent Council,Parish Liaison,Financial Services,11
08/12/2023,,LB of Brent,16/11/2023,Brent Council,Audit and Investigations,Stationery,11
08/12/2023,,LB of Brent,16/11/2023,Lyreco UK Limited,Customer Access Improvement and Performance,Stationery,350
08/12/2023,,LB of Brent,17/11/2023,Amznmktplace,Warm Spaces Grants,Stationery,202.18
08/12/2023,,LB of Brent,17/11/2023,Amznmktplace,Warm Spaces Grants,Stationery,239.9
08/12/2023,,LB of Brent,17/11/2023,Amznmktplace,Warm Spaces Grants,Stationery,898.38
08/12/2023,,LB of Brent,17/11/2023,Amznmktplace,Warm Spaces Grants,Stationery,1068.04
08/12/2023,,LB of Brent,17/11/2023,Amznmktplace,Customer Access Improvement and Performance,Stationery,1494.87
08/12/2023,,LB of Brent,17/11/2023,Companieshouse Web Filing,Legal Support,Legal Services,15
08/12/2023,,LB of Brent,17/11/2023,Companieshouse Web Filing,Legal Support,Legal Services,15
08/12/2023,,LB of Brent,17/11/2023,Amazon* 205-3991171-94,Customer Access Improvement and Performance,Stationery,108.31
08/12/2023,,LB of Brent,17/11/2023,Amazon* 205-6522170-38,Learning Disabilities Team,Stationery,211.58
08/12/2023,,LB of Brent,17/11/2023,Companieshouse Web Filing,Legal Support,Legal Services,-15
08/12/2023,,LB of Brent,18/11/2023,Amazon* 205-3991171-94,Customer Access Improvement and Performance,Stationery,3.32
08/12/2023,,LB of Brent,18/11/2023,Amznmktplace,Warm Spaces Grants,Stationery,28.99
08/12/2023,,LB of Brent,19/11/2023,Amazon* 205-6522170-38,Learning Disabilities Team,Stationery,20.83
08/12/2023,,LB of Brent,19/11/2023,Amznmktplace,Customer Access Improvement and Performance,Stationery,44.72
08/12/2023,,LB of Brent,19/11/2023,Amazon* 205-6522170-38,Learning Disabilities Team,Stationery,55.09
08/12/2023,,LB of Brent,19/11/2023,Amznmktplace,Warm Spaces Grants,Stationery,515.4
08/12/2023,,LB of Brent,20/11/2023,Harvest,IT Operations,Information Communication Technology,524.53
08/12/2023,,LB of Brent,21/11/2023,Amznmktplace,Brent Sicts,Information Communication Technology,213.3
08/12/2023,,LB of Brent,21/11/2023,Amznmktplace,Warm Spaces Grants,Stationery,151.02
08/12/2023,,LB of Brent,21/11/2023,Find A Will,Legal Support,Legal Services,1.5
08/12/2023,,LB of Brent,21/11/2023,Find A Will,Legal Support,Legal Services,1.5
08/12/2023,,LB of Brent,22/11/2023,Amznmktplace,Warm Spaces Grants,Stationery,134.24
08/12/2023,,LB of Brent,22/11/2023,Companieshouse Web Filing,Legal Support,Legal Services,15
08/12/2023,,LB of Brent,22/11/2023,Www.Phoenixhsc.Co.Uk,Health and Safety - Advisory,Human Resources - Training and Conferences,1795
08/12/2023,,LB of Brent,22/11/2023,Amazon* 204-4239941-72,Community Safety,Stationery,3.32
08/12/2023,,LB of Brent,22/11/2023,Amazon* 204-4239941-72,Community Safety,Stationery,73.73
08/12/2023,,LB of Brent,22/11/2023,Amznmktplace,Operational Costs - Facilities,Furniture and Soft Furnishings,324.17
08/12/2023,,LB of Brent,22/11/2023,Amazon* 204-9958471-72,Wlt1 Wembley Locality Team,Stationery,149.16
08/12/2023,,LB of Brent,23/11/2023,Amznmktplace,Operational Costs - Facilities,Financial Services,33.33
08/12/2023,,LB of Brent,23/11/2023,C2e872800308g Ukvi,Schools Hr,Financial Services,3239
08/12/2023,,LB of Brent,23/11/2023,Posturite Ltd,Alternative Education - Day 6 Exclusion,Healthcare - Equipment,400.56
08/12/2023,,LB of Brent,24/11/2023,Rics Subs UK Cybs,Operational Costs - Property,Human Resources - Training and Conferences,599
08/12/2023,,LB of Brent,29/11/2023,Moj Ospt Ecom,Housing Support Team,Environmental Services,40
08/12/2023,,LB of Brent,29/11/2023,Moj Ospt Ecom,Housing Support Team,Environmental Services,40
08/12/2023,,LB of Brent,29/11/2023,Moj Ospt Ecom,Housing Support Team,Environmental Services,40
08/12/2023,,LB of Brent,29/11/2023,Moj Ospt Ecom,Housing Support Team,Environmental Services,40
08/12/2023,,LB of Brent,29/11/2023,Moj Ospt Ecom,Housing Support Team,Environmental Services,40
08/12/2023,,LB of Brent,29/11/2023,Moj Ospt Ecom,Housing Support Team,Environmental Services,40
08/12/2023,,LB of Brent,29/11/2023,Moj Ospt Ecom,Housing Support Team,Environmental Services,40
08/12/2023,,LB of Brent,29/11/2023,Moj Ospt Ecom,Housing Support Team,Environmental Services,40
08/12/2023,,LB of Brent,29/11/2023,Fs *heavym,Civic Centre - Av,Consultancy,215
08/12/2023,,LB of Brent,29/11/2023,Brent Council,Housing Support Team,Environmental Services,11
08/12/2023,,LB of Brent,30/11/2023,Ashapura,Major Projects - Central,Domestic Goods,50
